{"text_format":"1","workbook":"xlsx","n_sheets":1,"sheets":["Req. Análises"],"not_rendered":{"charts":0,"images":3,"macros":1,"external_links":0,"defined_names":22,"comments":1,"pivot_tables":0},"unopened":[],"bounds":{"document_bytes":16777216,"sheet_cells":100000,"rows_first":2000,"rows_last":500,"rows_between":2000,"halvings":0,"cell_chars":16384,"cell_head_chars":4096},"cells_cut":0,"cells_raw":0,"read":"whole","date_system":"1900"}

{"sheet":"Req. Análises","index":0,"n_rows":292,"n_cols":67,"rows_kept":292,"cut":false,"hidden":false,"merged":[[25,12,45,12],[14,10,67,10],[5,10,13,10],[1,10,1,11],[1,12,1,13],[2,10,4,10],[2,12,16,12],[17,12,24,12],[0,10,0,15],[2,63,3,63],[2,65,3,65],[4,62,5,62],[4,63,5,63],[4,65,5,65],[0,16,1,16],[27,63,27,66],[21,62,21,65],[22,63,24,63],[0,62,0,65],[11,62,14,62],[11,63,14,63],[16,62,18,62],[16,63,18,63],[16,65,18,65],[6,62,7,62],[6,63,7,63],[6,65,7,65],[8,62,10,62],[8,63,10,63],[8,65,10,65],[2,62,3,62]]}
["FI-GAT-01.V03",null,"       Entidade Requisitante :",null,"Orçamento/Req. N.º: ",null,null,null,null,null,"                                              Grupos base modelos",null,null,null,null,null,null,null,null,null,null,null,null,null,null,null,"Tipo_de_amostra","Águas_de_Consumo_Humano","Águas_Subterrâneas_ACH","Águas_Superficiais_ACH","Águas_Residuais","Águas_Residuais_Industriais","Lixiviado","Águas_Subterrâneas","Águas_Superficiais","Águas_de_Piscina","Águas_Balneares_Marítimas","Águas_Balneares_Fluviais","Águas_Doces_Piscícolas","Águas_de_Rega","Águas_Pluviais","Lamas","Resíduo_Sólido","Solos","Eluato (Decreto Lei 183/2009)_Inertes, tabela nº2","Eluato (Decreto Lei 183/2009)_N.Perig., tabela nº4",null,null,null,null,null,null,null,"",null,null,null,null,null,null,null,null,"MESSAGENS A CONSTAR NOS ALERTAS"]
[null,"Hora Colheita (24:00)","Data Colheita                       (dd-mm-aaaa)","Tipo de amostra","Área/Zona","Nome Ponto/Designação amostra","Parâmetros","Observações","Preço",null,"Águas de Consumo Humano                                                       (D.L. N.º 306 de 2007 e 152 de 2017)",null,"Águas Brutas (D.L. N.º 236/98)",null,"Piscinas","Residuais",null,null,null,null,null,null,null,null,null,null,"Águas_de_Consumo_Humano",null,null,null,null,null,null,null,null,null,null,null,null,null,null,null,null,null,null,null,null,null,null,null,null,null,null,null,"search",null,null,null,null,null,null,null,"Caixa de selecção","Mensagens de alerta","Escritos diretamente na requsição","Mensagens de alerta"]
[null,null,null,null,null,null,null,null,null,null,"CR1","E. Coli","G1","Coliformes Fecais","pH","Aplicação de Amostrador Automático",null,null,null,null,null,null,null,null,null,null,null,null,null,null,null,null,null,null,null,null,null,null,null,null,null,null,null,null,null,null,null,null,null,null,null,null,{"$f":"IF(IFERROR(SEARCH($BB$1,BB3,1),0)>0,MAX(BA$2:BA2)+1,0)","v":1},"1,2-Dicloroetano",{"$f":"IFERROR(VLOOKUP(ROWS(BC$3:BC3),$BA$3:$BB$292,2,0),\"\")","v":"1,2-Dicloroetano"},null,null,null,null,null,null,null,"Pesticidas Totais","ver célula BN3","Pesticidas Totais","É necessário inserir os pesticidas individuais da zona geográfica correspondente."]
[null,null,null,null,null,null,null,null,null,null,null,"Bactérias Coliformes",null,"Coliformes Totais ","Condutividade","Colheita residual composta_CESAB",null,null,null,null,null,null,null,null,null,null,null,null,null,null,null,null,null,null,null,null,null,null,null,null,null,null,null,null,null,null,null,null,null,null,null,null,{"$f":"IF(IFERROR(SEARCH($BB$1,BB4,1),0)>0,MAX(BA$2:BA3)+1,0)","v":2},"Absorvância a 254nm",{"$f":"IFERROR(VLOOKUP(ROWS(BC$3:BC4),$BA$3:$BB$292,2,0),\"\")","v":"Absorvância a 254nm"},null,null,null,null,null,null,null,null,null,"Pesticidas"]
[null,null,null,null,null,null,null,null,null,null,null,"Desinfetante residual",null,"pH","Cloro Residual Livre","Colheita residual simples_ CESAB",null,null,null,null,null,null,null,null,null,null,null,null,null,null,null,null,null,null,null,null,null,null,null,null,null,null,null,null,null,null,null,null,null,null,null,null,{"$f":"IF(IFERROR(SEARCH($BB$1,BB5,1),0)>0,MAX(BA$2:BA4)+1,0)","v":3},"Acenafteno",{"$f":"IFERROR(VLOOKUP(ROWS(BC$3:BC5),$BA$3:$BB$292,2,0),\"\")","v":"Acenafteno"},null,null,null,null,null,null,null,"Trihalometanos","ATENÇÃO: Compostos individuais; Clorofórmio; Bromofórmio; Dibromoclorometano; Bromodiclorometano; automaticamente inseridos","THM","É necessário inserir os parâmetros individuais: Clorofórmio; Bromofórmio; Dibromoclorometano; Bromodiclorometano,"]
[null,null,null,null,null,null,null,null,null,null,"                                                  CR2_ incluir os parâmetros do grupo CR1   ","Cheiro",null,"Oxigénio dissolvido (%)","Cloro Residual Total","CBO",null,null,null,null,null,null,null,null,null,null,null,null,null,null,null,null,null,null,null,null,null,null,null,null,null,null,null,null,null,null,null,null,null,null,null,null,{"$f":"IF(IFERROR(SEARCH($BB$1,BB6,1),0)>0,MAX(BA$2:BA5)+1,0)","v":4},"Acenaftileno",{"$f":"IFERROR(VLOOKUP(ROWS(BC$3:BC6),$BA$3:$BB$292,2,0),\"\")","v":"Acenaftileno"},null,null,null,null,null,null,null,null,null,"Trihalometanos"]
[null,null,null,null,null,null,null,null,null,null,null,"Sabor",null,"Carência Bioquímica de Oxigénio","Coliformes Totais ","CQO",null,null,null,null,null,null,null,null,null,null,null,null,null,null,null,null,null,null,null,null,null,null,null,null,null,null,null,null,null,null,null,null,null,null,null,null,{"$f":"IF(IFERROR(SEARCH($BB$1,BB7,1),0)>0,MAX(BA$2:BA6)+1,0)","v":5},"Ácido Isocianúrico",{"$f":"IFERROR(VLOOKUP(ROWS(BC$3:BC7),$BA$3:$BB$292,2,0),\"\")","v":"Ácido Isocianúrico"},null,null,null,null,null,null,null,"Hidrocarbonetos Aromáticos Policíclicos (HAP)","ATENÇÃO:Compostos individuais Benzo[b]fluoranteno;Benzo[k]fluoranteno;Benzo[ghi]perileno;Indeno[1,2,3-cd]pireno; automaticamente inseridos.","Hidrocarbonteos Aromáticos","É necessário inserir os parâmetros individuais: Benzo[b]fluoranteno; Benzo[k]fluoranteno; Benzo[ghi]perileno e Indeno[1,2,3-cd]pireno.\n","Se for água bruta deverá inserir também o parâmetro Fluoranteno."]
[null,null,null,null,null,null,null,null,null,null,null,"pH",null,"Carência Quimica de Oxigénio","Escherichia Coli ","SST",null,null,null,null,null,null,null,null,null,null,null,null,null,null,null,null,null,null,null,null,null,null,null,null,null,null,null,null,null,null,null,null,null,null,null,null,{"$f":"IF(IFERROR(SEARCH($BB$1,BB8,1),0)>0,MAX(BA$2:BA7)+1,0)","v":6},"Ácidos Gordos Voláteis",{"$f":"IFERROR(VLOOKUP(ROWS(BC$3:BC8),$BA$3:$BB$292,2,0),\"\")","v":"Ácidos Gordos Voláteis"},null,null,null,null,null,null,null,null,null,"HAP"]
[null,null,null,null,null,null,null,null,null,null,null,"Condutividade",null,"Sólidos Suspensos Totais","Pseudomonas Aeruginosa ","pH",null,null,null,null,null,null,null,null,null,null,null,null,null,null,null,null,null,null,null,null,null,null,null,null,null,null,null,null,null,null,null,null,null,null,null,null,{"$f":"IF(IFERROR(SEARCH($BB$1,BB9,1),0)>0,MAX(BA$2:BA8)+1,0)","v":7},"Ácidos Húmicos",{"$f":"IFERROR(VLOOKUP(ROWS(BC$3:BC9),$BA$3:$BB$292,2,0),\"\")","v":"Ácidos Húmicos"},null,null,null,null,null,null,null,"Legionella spp.","Ver célula BN9","Legionela","É necessário inserir o parâmetro Legionella pneumophila."]
[null,null,null,null,null,null,null,null,null,null,null,"Cor",null,"Cor","Estafilococos Produtores de Coagulase ","Azoto Total",null,null,null,null,null,null,null,null,null,null,null,null,null,null,null,null,null,null,null,null,null,null,null,null,null,null,null,null,null,null,null,null,null,null,null,null,{"$f":"IF(IFERROR(SEARCH($BB$1,BB10,1),0)>0,MAX(BA$2:BA9)+1,0)","v":8},"Acrilamida",{"$f":"IFERROR(VLOOKUP(ROWS(BC$3:BC10),$BA$3:$BB$292,2,0),\"\")","v":"Acrilamida"},null,null,null,null,null,null,null,null,null,"Legionella"]
[null,null,null,null,null,null,null,null,null,null,null,"Turvação",null,"Temperatura","Estafilococos Totais ","Fósforo Total",null,null,null,null,null,null,null,null,null,null,null,null,null,null,null,null,null,null,null,null,null,null,null,null,null,null,null,null,null,null,null,null,null,null,null,null,{"$f":"IF(IFERROR(SEARCH($BB$1,BB11,1),0)>0,MAX(BA$2:BA10)+1,0)","v":9},"Alacloro",{"$f":"IFERROR(VLOOKUP(ROWS(BC$3:BC11),$BA$3:$BB$292,2,0),\"\")","v":"Alacloro"},null,null,null,null,null,null,null,null,null,"legionela"]
[null,null,null,null,null,null,null,null,null,null,null,"Enterococos",null,"Condutividade","Enterococos Fecais","Óleos e gorduras",null,null,null,null,null,null,null,null,null,null,null,null,null,null,null,null,null,null,null,null,null,null,null,null,null,null,null,null,null,null,null,null,null,null,null,null,{"$f":"IF(IFERROR(SEARCH($BB$1,BB12,1),0)>0,MAX(BA$2:BA11)+1,0)","v":10},"Alcalinidade à Fenolftaleína",{"$f":"IFERROR(VLOOKUP(ROWS(BC$3:BC12),$BA$3:$BB$292,2,0),\"\")","v":"Alcalinidade à Fenolftaleína"},null,null,null,null,null,null,null,"Legionella spp.","ATENÇÃO: O parâmetro Legionella pneumophila foi automaticamente inserido","Legionella pneumophila",null,"Não pode existir a designação \"Legionella pneumophila\""]
[null,null,null,null,null,null,null,null,null,null,null,"Número de colónias a 22 ºC",null,"Cheiro, a 25 ºC","Número de Colónias a 36 ºC ","Colheita residual composta_Cliente",null,null,null,null,null,null,null,null,null,null,null,null,null,null,null,null,null,null,null,null,null,null,null,null,null,null,null,null,null,null,null,null,null,null,null,null,{"$f":"IF(IFERROR(SEARCH($BB$1,BB13,1),0)>0,MAX(BA$2:BA12)+1,0)","v":11},"Alcalinidade Total",{"$f":"IFERROR(VLOOKUP(ROWS(BC$3:BC13),$BA$3:$BB$292,2,0),\"\")","v":"Alcalinidade Total"},null,null,null,null,null,null,null,null,null,"Legionella pneumophila","É necessário inserir o parâmetro Legionella spp."]
[null,null,null,null,null,null,null,null,null,null,null,"Número de colónias a 36 ºC",null,"Nitrato",null,"Colheita residual simples_ Cliente",null,null,null,null,null,null,null,null,null,null,null,null,null,null,null,null,null,null,null,null,null,null,null,null,null,null,null,null,null,null,null,null,null,null,null,null,{"$f":"IF(IFERROR(SEARCH($BB$1,BB14,1),0)>0,MAX(BA$2:BA13)+1,0)","v":12},"Aldeídos",{"$f":"IFERROR(VLOOKUP(ROWS(BC$3:BC14),$BA$3:$BB$292,2,0),\"\")","v":"Aldeídos"},null,null,null,null,null,null,null,null,null,"Legionela pneumofila","É necessário inserir o parâmetro Legionella spp."]
[null,null,null,null,null,null,null,null,null,null,"CI_incluir os parâmetros do CR1+CR2","Clostridium perfringens",null,"Azoto Amoniacal",null,"Azoto Total_[Amostragem Pontual]",null,null,null,null,null,null,null,null,null,null,null,null,null,null,null,null,null,null,null,null,null,null,null,null,null,null,null,null,null,null,null,null,null,null,null,null,{"$f":"IF(IFERROR(SEARCH($BB$1,BB15,1),0)>0,MAX(BA$2:BA14)+1,0)","v":13},"Alfa-total",{"$f":"IFERROR(VLOOKUP(ROWS(BC$3:BC15),$BA$3:$BB$292,2,0),\"\")","v":"Alfa-total"},null,null,null,null,null,null,null,null,null,"Legionela pneumophila","É necessário inserir o parâmetro Legionella spp."]
[null,null,null,null,null,null,null,null,null,null,null,"Alumínio",null,"Cloreto",null,"Detergentes_[Amostragem Pontual]",null,null,null,null,null,null,null,null,null,null,null,null,null,null,null,null,null,null,null,null,null,null,null,null,null,null,null,null,null,null,null,null,null,null,null,null,{"$f":"IF(IFERROR(SEARCH($BB$1,BB16,1),0)>0,MAX(BA$2:BA15)+1,0)","v":14},"Alumínio",{"$f":"IFERROR(VLOOKUP(ROWS(BC$3:BC16),$BA$3:$BB$292,2,0),\"\")","v":"Alumínio"},null,null,null,null,null,null,null,"Colheita residual composta_CESAB","ATENÇÃO: Foi adicionado o parâmetro \"Aplicação de Amostrador Automático\". A data, desta linha, deve ser alterada para o dia anterior ao levantamento da colheita composta das 24h.","Colheita composta; composta","Sempre que se pretenda uma colheita composta deve ser incluido o parâmetro \"Aplicação de Amostrador Automático\" no dia anterior."]
[null,null,null,null,null,null,null,null,null,null,null,"Amónia",null,"Fosfato",null,"Fósforo Total_[Amostragem Pontual]",null,null,null,null,null,null,null,null,null,null,null,null,null,null,null,null,null,null,null,null,null,null,null,null,null,null,null,null,null,null,null,null,null,null,null,null,{"$f":"IF(IFERROR(SEARCH($BB$1,BB17,1),0)>0,MAX(BA$2:BA16)+1,0)","v":15},"Amónio",{"$f":"IFERROR(VLOOKUP(ROWS(BC$3:BC17),$BA$3:$BB$292,2,0),\"\")","v":"Amónio"},null,null,null,null,null,null,null,null,null,"Salmonela","Indicar qual dos seguintes parâmetros deve ser considerado: Salmonela (5000 mL) ou Salmonela (1000 mL)"]
[null,null,null,null,null,null,null,null,null,null,null,"Antimónio","                                                                                                                              G2_Incluir os parâmetros do grupo G1","Ferro dissolvido",null,"Óleos e Gorduras [Amostragem Pontual]",null,null,null,null,null,null,null,null,null,null,null,null,null,null,null,null,null,null,null,null,null,null,null,null,null,null,null,null,null,null,null,null,null,null,null,null,{"$f":"IF(IFERROR(SEARCH($BB$1,BB18,1),0)>0,MAX(BA$2:BA17)+1,0)","v":16},"Antimónio",{"$f":"IFERROR(VLOOKUP(ROWS(BC$3:BC18),$BA$3:$BB$292,2,0),\"\")","v":"Antimónio"},null,null,null,null,null,null,null,null,null,"salmonela"]
[null,null,null,null,null,null,null,null,null,null,null,"Arsénio",null,"Manganês",null,"pH [Amostragem Pontual]",null,null,null,null,null,null,null,null,null,null,null,null,null,null,null,null,null,null,null,null,null,null,null,null,null,null,null,null,null,null,null,null,null,null,null,null,{"$f":"IF(IFERROR(SEARCH($BB$1,BB19,1),0)>0,MAX(BA$2:BA18)+1,0)","v":17},"Antraceno",{"$f":"IFERROR(VLOOKUP(ROWS(BC$3:BC19),$BA$3:$BB$292,2,0),\"\")","v":"Antraceno"},null,null,null,null,null,null,null,null,null,"Salmonella"]
[null,null,null,null,null,null,null,null,null,null,null,"Benzeno",null,"Cobre",null,"Temperatura [Amostra pontual]",null,null,null,null,null,null,null,null,null,null,null,null,null,null,null,null,null,null,null,null,null,null,null,null,null,null,null,null,null,null,null,null,null,null,null,null,{"$f":"IF(IFERROR(SEARCH($BB$1,BB20,1),0)>0,MAX(BA$2:BA19)+1,0)","v":18},"AOX",{"$f":"IFERROR(VLOOKUP(ROWS(BC$3:BC20),$BA$3:$BB$292,2,0),\"\")","v":"AOX"}]
[null,null,null,null,null,null,null,null,null,null,null,"Benzo(a)pireno",null,"Zinco",null,null,null,null,null,null,null,null,null,null,null,null,null,null,null,null,null,null,null,null,null,null,null,null,null,null,null,null,null,null,null,null,null,null,null,null,null,null,{"$f":"IF(IFERROR(SEARCH($BB$1,BB21,1),0)>0,MAX(BA$2:BA20)+1,0)","v":19},"Arsénio",{"$f":"IFERROR(VLOOKUP(ROWS(BC$3:BC21),$BA$3:$BB$292,2,0),\"\")","v":"Arsénio"},null,null,null,null,null,null,null,"Dose Indicativa_Cálculo_Radionuclídeos","ATENÇÃO: Foram adicionados os radionuclídeos emissores de radição alfa; Polónio 210; Rádio226; Urânio 234 e Urânio 238"]
[null,null,null,null,null,null,null,null,null,null,null,"Boro",null,"Sulfatos",null,null,null,null,null,null,null,null,null,null,null,null,null,null,null,null,null,null,null,null,null,null,null,null,null,null,null,null,null,null,null,null,null,null,null,null,null,null,{"$f":"IF(IFERROR(SEARCH($BB$1,BB22,1),0)>0,MAX(BA$2:BA21)+1,0)","v":20},"Atrazina",{"$f":"IFERROR(VLOOKUP(ROWS(BC$3:BC22),$BA$3:$BB$292,2,0),\"\")","v":"Atrazina"},null,null,null,null,null,null,null,"Para os tipos de amostras Águas Residuais, Residuais industriais e Lixiviados é necessário escolher o tipo de colheita (simples/composta-CESAB/Cliente).\nPara os outros tipos de amostra não é necessário incluir os parâmetros \"Colheita pelo CESAB_F.Q./Micro\".  \n"]
[null,null,null,null,null,null,null,null,null,null,null,"Bromatos",null,"Substâncias Tensioactivas",null,null,null,null,null,null,null,null,null,null,null,null,null,null,null,null,null,null,null,null,null,null,null,null,null,null,null,null,null,null,null,null,null,null,null,null,null,null,{"$f":"IF(IFERROR(SEARCH($BB$1,BB23,1),0)>0,MAX(BA$2:BA22)+1,0)","v":21},"Azoto Amoniacal",{"$f":"IFERROR(VLOOKUP(ROWS(BC$3:BC23),$BA$3:$BB$292,2,0),\"\")","v":"Azoto Amoniacal"},null,null,null,null,null,null,null,"Águas_Residuais","É necessário escolher o parâmetro de colheita residual(simples/composta) a considerar."]
[null,null,null,null,null,null,null,null,null,null,null,"Cádmio",null,"Azoto Kjeldahl",null,null,null,null,null,null,null,null,null,null,null,null,null,null,null,null,null,null,null,null,null,null,null,null,null,null,null,null,null,null,null,null,null,null,null,null,null,null,{"$f":"IF(IFERROR(SEARCH($BB$1,BB24,1),0)>0,MAX(BA$2:BA23)+1,0)","v":22},"Azoto Kjeldahl",{"$f":"IFERROR(VLOOKUP(ROWS(BC$3:BC24),$BA$3:$BB$292,2,0),\"\")","v":"Azoto Kjeldahl"},null,null,null,null,null,null,null,"Águas_Residuais_Industriais"]
[null,null,null,null,null,null,null,null,null,null,null,"Cálcio",null,"Estreptococos fecais (Enterocos)",null,null,null,null,null,null,null,null,null,null,null,null,null,null,null,null,null,null,null,null,null,null,null,null,null,null,null,null,null,null,null,null,null,null,null,null,null,null,{"$f":"IF(IFERROR(SEARCH($BB$1,BB25,1),0)>0,MAX(BA$2:BA24)+1,0)","v":23},"Azoto Nitrico",{"$f":"IFERROR(VLOOKUP(ROWS(BC$3:BC25),$BA$3:$BB$292,2,0),\"\")","v":"Azoto Nitrico"},null,null,null,null,null,null,null,"Lixiviado"]
[null,null,null,null,null,null,null,null,null,null,null,"Carbono orgânico total","                                                                                   G3_ incluir os parâmetros do G1+ G2","Fluoretos",null,null,null,null,null,null,null,null,null,null,null,null,null,null,null,null,null,null,null,null,null,null,null,null,null,null,null,null,null,null,null,null,null,null,null,null,null,null,{"$f":"IF(IFERROR(SEARCH($BB$1,BB26,1),0)>0,MAX(BA$2:BA25)+1,0)","v":24},"Azoto Orgânico",{"$f":"IFERROR(VLOOKUP(ROWS(BC$3:BC26),$BA$3:$BB$292,2,0),\"\")","v":"Azoto Orgânico"},null,null,null,null,null,null,null,null,null,"Paratião"," Indicar se pretende o Paratião-etil e/ou Paratião-metil."]
[null,null,null,null,null,null,null,null,null,null,null,"Cianetos",null,"Boro",null,null,null,null,null,null,null,null,null,null,null,null,null,null,null,null,null,null,null,null,null,null,null,null,null,null,null,null,null,null,null,null,null,null,null,null,null,null,{"$f":"IF(IFERROR(SEARCH($BB$1,BB27,1),0)>0,MAX(BA$2:BA26)+1,0)","v":25},"Azoto Total",{"$f":"IFERROR(VLOOKUP(ROWS(BC$3:BC27),$BA$3:$BB$292,2,0),\"\")","v":"Azoto Total"},null,null,null,null,null,null,null,null,null,"paratião"]
[null,null,null,null,null,null,null,null,null,null,null,"Cloretos",null,"Arsénio",null,null,null,null,null,null,null,null,null,null,null,null,null,null,null,null,null,null,null,null,null,null,null,null,null,null,null,null,null,null,null,null,null,null,null,null,null,null,{"$f":"IF(IFERROR(SEARCH($BB$1,BB28,1),0)>0,MAX(BA$2:BA27)+1,0)","v":26},"Azoto Total_[Amostragem Pontual]",{"$f":"IFERROR(VLOOKUP(ROWS(BC$3:BC28),$BA$3:$BB$292,2,0),\"\")","v":"Azoto Total_[Amostragem Pontual]"},null,null,null,null,null,null,null,"Águas_de_Consumo_Humano","Se requisitados parâmetros microbiológicos no âmbito do PCQA/Análises de verificação incluir o parâmetro \"Desinfetante residual\" ou \"Desinfetante Residual_Cliente\""]
[null,null,null,null,null,null,null,null,null,null,null,"Cloritos",null,"Cádmio",null,null,null,null,null,null,null,null,null,null,null,null,null,null,null,null,null,null,null,null,null,null,null,null,null,null,null,null,null,null,null,null,null,null,null,null,null,null,{"$f":"IF(IFERROR(SEARCH($BB$1,BB29,1),0)>0,MAX(BA$2:BA28)+1,0)","v":27},"Bactérias Coliformes",{"$f":"IFERROR(VLOOKUP(ROWS(BC$3:BC29),$BA$3:$BB$292,2,0),\"\")","v":"Bactérias Coliformes"}]
[null,null,null,null,null,null,null,null,null,null,null,"Cloratos",null,"Crómio Total",null,null,null,null,null,null,null,null,null,null,null,null,null,null,null,null,null,null,null,null,null,null,null,null,null,null,null,null,null,null,null,null,null,null,null,null,null,null,{"$f":"IF(IFERROR(SEARCH($BB$1,BB30,1),0)>0,MAX(BA$2:BA29)+1,0)","v":28},"Bário",{"$f":"IFERROR(VLOOKUP(ROWS(BC$3:BC30),$BA$3:$BB$292,2,0),\"\")","v":"Bário"}]
[null,null,null,null,null,null,null,null,null,null,null,"Chumbo sem purga",null,"Chumbo",null,null,null,null,null,null,null,null,null,null,null,null,null,null,null,null,null,null,null,null,null,null,null,null,null,null,null,null,null,null,null,null,null,null,null,null,null,null,{"$f":"IF(IFERROR(SEARCH($BB$1,BB31,1),0)>0,MAX(BA$2:BA30)+1,0)","v":29},"Bentazona",{"$f":"IFERROR(VLOOKUP(ROWS(BC$3:BC31),$BA$3:$BB$292,2,0),\"\")","v":"Bentazona"}]
[null,null,null,null,null,null,null,null,null,null,null,"Níquel sem purga",null,"Selénio",null,null,null,null,null,null,null,null,null,null,null,null,null,null,null,null,null,null,null,null,null,null,null,null,null,null,null,null,null,null,null,null,null,null,null,null,null,null,{"$f":"IF(IFERROR(SEARCH($BB$1,BB32,1),0)>0,MAX(BA$2:BA31)+1,0)","v":30},"Benzeno",{"$f":"IFERROR(VLOOKUP(ROWS(BC$3:BC32),$BA$3:$BB$292,2,0),\"\")","v":"Benzeno"}]
[null,null,null,null,null,null,null,null,null,null,null,"Cobre sem purga",null,"Mercúrio",null,null,null,null,null,null,null,null,null,null,null,null,null,null,null,null,null,null,null,null,null,null,null,null,null,null,null,null,null,null,null,null,null,null,null,null,null,null,{"$f":"IF(IFERROR(SEARCH($BB$1,BB33,1),0)>0,MAX(BA$2:BA32)+1,0)","v":31},"Benzo(a)pireno",{"$f":"IFERROR(VLOOKUP(ROWS(BC$3:BC33),$BA$3:$BB$292,2,0),\"\")","v":"Benzo(a)pireno"}]
[null,null,null,null,null,null,null,null,null,null,null,"Crómio",null,"Bário",null,null,null,null,null,null,null,null,null,null,null,null,null,null,null,null,null,null,null,null,null,null,null,null,null,null,null,null,null,null,null,null,null,null,null,null,null,null,{"$f":"IF(IFERROR(SEARCH($BB$1,BB34,1),0)>0,MAX(BA$2:BA33)+1,0)","v":32},"Benzo(b)fluoranteno",{"$f":"IFERROR(VLOOKUP(ROWS(BC$3:BC34),$BA$3:$BB$292,2,0),\"\")","v":"Benzo(b)fluoranteno"}]
[null,null,null,null,null,null,null,null,null,null,null,"1,2 – dicloroetano",null,"Cianetos",null,null,null,null,null,null,null,null,null,null,null,null,null,null,null,null,null,null,null,null,null,null,null,null,null,null,null,null,null,null,null,null,null,null,null,null,null,null,{"$f":"IF(IFERROR(SEARCH($BB$1,BB35,1),0)>0,MAX(BA$2:BA34)+1,0)","v":33},"Benzo(ghi)perileno",{"$f":"IFERROR(VLOOKUP(ROWS(BC$3:BC35),$BA$3:$BB$292,2,0),\"\")","v":"Benzo(ghi)perileno"}]
[null,null,null,null,null,null,null,null,null,null,null,"Dureza total",null,"Hidrocarbonetos Dissolvidos e Emulsionados",null,null,null,null,null,null,null,null,null,null,null,null,null,null,null,null,null,null,null,null,null,null,null,null,null,null,null,null,null,null,null,null,null,null,null,null,null,null,{"$f":"IF(IFERROR(SEARCH($BB$1,BB36,1),0)>0,MAX(BA$2:BA35)+1,0)","v":34},"Benzo(k)fluoranteno",{"$f":"IFERROR(VLOOKUP(ROWS(BC$3:BC36),$BA$3:$BB$292,2,0),\"\")","v":"Benzo(k)fluoranteno"}]
[null,null,null,null,null,null,null,null,null,null,null,"Ferro",null,"Hidrocarbonteos Aromáticos Polinucleares",null,null,null,null,null,null,null,null,null,null,null,null,null,null,null,null,null,null,null,null,null,null,null,null,null,null,null,null,null,null,null,null,null,null,null,null,null,null,{"$f":"IF(IFERROR(SEARCH($BB$1,BB37,1),0)>0,MAX(BA$2:BA36)+1,0)","v":35},"Berílio",{"$f":"IFERROR(VLOOKUP(ROWS(BC$3:BC37),$BA$3:$BB$292,2,0),\"\")","v":"Berílio"}]
[null,null,null,null,null,null,null,null,null,null,null,"Fluoretos",null," Benzo[b]fluoranteno",null,null,null,null,null,null,null,null,null,null,null,null,null,null,null,null,null,null,null,null,null,null,null,null,null,null,null,null,null,null,null,null,null,null,null,null,null,null,{"$f":"IF(IFERROR(SEARCH($BB$1,BB38,1),0)>0,MAX(BA$2:BA37)+1,0)","v":36},"Beta Total",{"$f":"IFERROR(VLOOKUP(ROWS(BC$3:BC38),$BA$3:$BB$292,2,0),\"\")","v":"Beta Total"}]
[null,null,null,null,null,null,null,null,null,null,null,"HAP",null," Benzo[k]fluoranteno",null,null,null,null,null,null,null,null,null,null,null,null,null,null,null,null,null,null,null,null,null,null,null,null,null,null,null,null,null,null,null,null,null,null,null,null,null,null,{"$f":"IF(IFERROR(SEARCH($BB$1,BB39,1),0)>0,MAX(BA$2:BA38)+1,0)","v":37},"Bicarbonato",{"$f":"IFERROR(VLOOKUP(ROWS(BC$3:BC39),$BA$3:$BB$292,2,0),\"\")","v":"Bicarbonato"}]
[null,null,null,null,null,null,null,null,null,null,null," Benzo[b]fluoranteno",null,"Benzo[ghi]perileno",null,null,null,null,null,null,null,null,null,null,null,null,null,null,null,null,null,null,null,null,null,null,null,null,null,null,null,null,null,null,null,null,null,null,null,null,null,null,{"$f":"IF(IFERROR(SEARCH($BB$1,BB40,1),0)>0,MAX(BA$2:BA39)+1,0)","v":38},"Biovolume Fitoplantónico Total",{"$f":"IFERROR(VLOOKUP(ROWS(BC$3:BC40),$BA$3:$BB$292,2,0),\"\")","v":"Biovolume Fitoplantónico Total"}]
[null,null,null,null,null,null,null,null,null,null,null," Benzo[k]fluoranteno",null,"Indeno[1,2,3-cd]pireno",null,null,null,null,null,null,null,null,null,null,null,null,null,null,null,null,null,null,null,null,null,null,null,null,null,null,null,null,null,null,null,null,null,null,null,null,null,null,{"$f":"IF(IFERROR(SEARCH($BB$1,BB41,1),0)>0,MAX(BA$2:BA40)+1,0)","v":39},"Boro",{"$f":"IFERROR(VLOOKUP(ROWS(BC$3:BC41),$BA$3:$BB$292,2,0),\"\")","v":"Boro"}]
[null,null,null,null,null,null,null,null,null,null,null,"Benzo[ghi]perileno",null,"Fluoranteno",null,null,null,null,null,null,null,null,null,null,null,null,null,null,null,null,null,null,null,null,null,null,null,null,null,null,null,null,null,null,null,null,null,null,null,null,null,null,{"$f":"IF(IFERROR(SEARCH($BB$1,BB42,1),0)>0,MAX(BA$2:BA41)+1,0)","v":40},"Bromatos",{"$f":"IFERROR(VLOOKUP(ROWS(BC$3:BC42),$BA$3:$BB$292,2,0),\"\")","v":"Bromatos"}]
[null,null,null,null,null,null,null,null,null,null,null,"Indeno[1,2,3-cd]pireno",null,"Pesticidas Totais","-->Especificar compostos individuais ",null,null,null,null,null,null,null,null,null,null,null,null,null,null,null,null,null,null,null,null,null,null,null,null,null,null,null,null,null,null,null,null,null,null,null,null,null,{"$f":"IF(IFERROR(SEARCH($BB$1,BB43,1),0)>0,MAX(BA$2:BA42)+1,0)","v":41},"Brometo",{"$f":"IFERROR(VLOOKUP(ROWS(BC$3:BC43),$BA$3:$BB$292,2,0),\"\")","v":"Brometo"}]
[null,null,null,null,null,null,null,null,null,null,null,"Manganês",null,"Substâncias Extraíveis com clorofórmio",null,null,null,null,null,null,null,null,null,null,null,null,null,null,null,null,null,null,null,null,null,null,null,null,null,null,null,null,null,null,null,null,null,null,null,null,null,null,{"$f":"IF(IFERROR(SEARCH($BB$1,BB44,1),0)>0,MAX(BA$2:BA43)+1,0)","v":42},"Bromo",{"$f":"IFERROR(VLOOKUP(ROWS(BC$3:BC44),$BA$3:$BB$292,2,0),\"\")","v":"Bromo"}]
[null,null,null,null,null,null,null,null,null,null,null,"Nitratos",null,"Salmonella_1 Litro",null,null,null,null,null,null,null,null,null,null,null,null,null,null,null,null,null,null,null,null,null,null,null,null,null,null,null,null,null,null,null,null,null,null,null,null,null,null,{"$f":"IF(IFERROR(SEARCH($BB$1,BB45,1),0)>0,MAX(BA$2:BA44)+1,0)","v":43},"Bromodiclorometano",{"$f":"IFERROR(VLOOKUP(ROWS(BC$3:BC45),$BA$3:$BB$292,2,0),\"\")","v":"Bromodiclorometano"}]
[null,null,null,null,null,null,null,null,null,null,null,"Nitritos",null,"Salmonella_5 Litro",null,null,null,null,null,null,null,null,null,null,null,null,null,null,null,null,null,null,null,null,null,null,null,null,null,null,null,null,null,null,null,null,null,null,null,null,null,null,{"$f":"IF(IFERROR(SEARCH($BB$1,BB46,1),0)>0,MAX(BA$2:BA45)+1,0)","v":44},"Bromofórmio",{"$f":"IFERROR(VLOOKUP(ROWS(BC$3:BC46),$BA$3:$BB$292,2,0),\"\")","v":"Bromofórmio"}]
[null,null,null,null,null,null,null,null,null,null,null,"Mercúrio",null,null,null,null,null,null,null,null,null,null,null,null,null,null,null,null,null,null,null,null,null,null,null,null,null,null,null,null,null,null,null,null,null,null,null,null,null,null,null,null,{"$f":"IF(IFERROR(SEARCH($BB$1,BB47,1),0)>0,MAX(BA$2:BA46)+1,0)","v":45},"BTEX",{"$f":"IFERROR(VLOOKUP(ROWS(BC$3:BC47),$BA$3:$BB$292,2,0),\"\")","v":"BTEX"}]
[null,null,null,null,null,null,null,null,null,null,null,"Oxidabilidade",null,null,null,null,null,null,null,null,null,null,null,null,null,null,null,null,null,null,null,null,null,null,null,null,null,null,null,null,null,null,null,null,null,null,null,null,null,null,null,null,{"$f":"IF(IFERROR(SEARCH($BB$1,BB48,1),0)>0,MAX(BA$2:BA47)+1,0)","v":46},"Cádmio",{"$f":"IFERROR(VLOOKUP(ROWS(BC$3:BC48),$BA$3:$BB$292,2,0),\"\")","v":"Cádmio"}]
[null,null,null,null,null,null,null,null,null,null,null,"Pesticidas ( total)","-->Especificar compostos individuais correspondentes ao concelho.",null,null,null,null,null,null,null,null,null,null,null,null,null,null,null,null,null,null,null,null,null,null,null,null,null,null,null,null,null,null,null,null,null,null,null,null,null,null,null,{"$f":"IF(IFERROR(SEARCH($BB$1,BB49,1),0)>0,MAX(BA$2:BA48)+1,0)","v":47},"Cálcio",{"$f":"IFERROR(VLOOKUP(ROWS(BC$3:BC49),$BA$3:$BB$292,2,0),\"\")","v":"Cálcio"}]
[null,null,null,null,null,null,null,null,null,null,null,"Selénio",null,null,null,null,null,null,null,null,null,null,null,null,null,null,null,null,null,null,null,null,null,null,null,null,null,null,null,null,null,null,null,null,null,null,null,null,null,null,null,null,{"$f":"IF(IFERROR(SEARCH($BB$1,BB50,1),0)>0,MAX(BA$2:BA49)+1,0)","v":48},"Cálcio Total",{"$f":"IFERROR(VLOOKUP(ROWS(BC$3:BC50),$BA$3:$BB$292,2,0),\"\")","v":"Cálcio Total"}]
[null,null,null,null,null,null,null,null,null,null,null,"Sódio",null,null,null,null,null,null,null,null,null,null,null,null,null,null,null,null,null,null,null,null,null,null,null,null,null,null,null,null,null,null,null,null,null,null,null,null,null,null,null,null,{"$f":"IF(IFERROR(SEARCH($BB$1,BB51,1),0)>0,MAX(BA$2:BA50)+1,0)","v":49},"Cálculo da DI_Radionuclídeos",{"$f":"IFERROR(VLOOKUP(ROWS(BC$3:BC51),$BA$3:$BB$292,2,0),\"\")","v":"Cálculo da DI_Radionuclídeos"}]
[null,null,null,null,null,null,null,null,null,null,null,"Sulfatos",null,null,null,null,null,null,null,null,null,null,null,null,null,null,null,null,null,null,null,null,null,null,null,null,null,null,null,null,null,null,null,null,null,null,null,null,null,null,null,null,{"$f":"IF(IFERROR(SEARCH($BB$1,BB52,1),0)>0,MAX(BA$2:BA51)+1,0)","v":50},"Carbonato",{"$f":"IFERROR(VLOOKUP(ROWS(BC$3:BC52),$BA$3:$BB$292,2,0),\"\")","v":"Carbonato"}]
[null,null,null,null,null,null,null,null,null,null,null,"Soma do Tetracloroeteno e Tricloroeteno",null,null,null,null,null,null,null,null,null,null,null,null,null,null,null,null,null,null,null,null,null,null,null,null,null,null,null,null,null,null,null,null,null,null,null,null,null,null,null,null,{"$f":"IF(IFERROR(SEARCH($BB$1,BB53,1),0)>0,MAX(BA$2:BA52)+1,0)","v":51},"Carbono Orgânico Dissolvido",{"$f":"IFERROR(VLOOKUP(ROWS(BC$3:BC53),$BA$3:$BB$292,2,0),\"\")","v":"Carbono Orgânico Dissolvido"}]
[null,null,null,null,null,null,null,null,null,null,null,"Tetracloroeteno",null,null,null,null,null,null,null,null,null,null,null,null,null,null,null,null,null,null,null,null,null,null,null,null,null,null,null,null,null,null,null,null,null,null,null,null,null,null,null,null,{"$f":"IF(IFERROR(SEARCH($BB$1,BB54,1),0)>0,MAX(BA$2:BA53)+1,0)","v":52},"Carbono Orgânico Total",{"$f":"IFERROR(VLOOKUP(ROWS(BC$3:BC54),$BA$3:$BB$292,2,0),\"\")","v":"Carbono Orgânico Total"}]
[null,null,null,null,null,null,null,null,null,null,null,"Tricloroeteno",null,null,null,null,null,null,null,null,null,null,null,null,null,null,null,null,null,null,null,null,null,null,null,null,null,null,null,null,null,null,null,null,null,null,null,null,null,null,null,null,{"$f":"IF(IFERROR(SEARCH($BB$1,BB55,1),0)>0,MAX(BA$2:BA54)+1,0)","v":53},"Carência Bioquímica de Oxigénio",{"$f":"IFERROR(VLOOKUP(ROWS(BC$3:BC55),$BA$3:$BB$292,2,0),\"\")","v":"Carência Bioquímica de Oxigénio"}]
[null,null,null,null,null,null,null,null,null,null,null,"Trihalometanos",null,null,null,null,null,null,null,null,null,null,null,null,null,null,null,null,null,null,null,null,null,null,null,null,null,null,null,null,null,null,null,null,null,null,null,null,null,null,null,null,{"$f":"IF(IFERROR(SEARCH($BB$1,BB56,1),0)>0,MAX(BA$2:BA55)+1,0)","v":54},"Carência Bioquímica de Oxigénio - Solúvel",{"$f":"IFERROR(VLOOKUP(ROWS(BC$3:BC56),$BA$3:$BB$292,2,0),\"\")","v":"Carência Bioquímica de Oxigénio - Solúvel"}]
[null,null,null,null,null,null,null,null,null,null,null,"clorofórmio",null,null,null,null,null,null,null,null,null,null,null,null,null,null,null,null,null,null,null,null,null,null,null,null,null,null,null,null,null,null,null,null,null,null,null,null,null,null,null,null,{"$f":"IF(IFERROR(SEARCH($BB$1,BB57,1),0)>0,MAX(BA$2:BA56)+1,0)","v":55},"Carência Quimica de Oxigénio",{"$f":"IFERROR(VLOOKUP(ROWS(BC$3:BC57),$BA$3:$BB$292,2,0),\"\")","v":"Carência Quimica de Oxigénio"}]
[null,null,null,null,null,null,null,null,null,null,null," bromofórmio",null,null,null,null,null,null,null,null,null,null,null,null,null,null,null,null,null,null,null,null,null,null,null,null,null,null,null,null,null,null,null,null,null,null,null,null,null,null,null,null,{"$f":"IF(IFERROR(SEARCH($BB$1,BB58,1),0)>0,MAX(BA$2:BA57)+1,0)","v":56},"Carência Quimica de Oxigénio - Solúvel",{"$f":"IFERROR(VLOOKUP(ROWS(BC$3:BC58),$BA$3:$BB$292,2,0),\"\")","v":"Carência Quimica de Oxigénio - Solúvel"}]
[null,null,null,null,null,null,null,null,null,null,null," dibromoclorometano",null,null,null,null,null,null,null,null,null,null,null,null,null,null,null,null,null,null,null,null,null,null,null,null,null,null,null,null,null,null,null,null,null,null,null,null,null,null,null,null,{"$f":"IF(IFERROR(SEARCH($BB$1,BB59,1),0)>0,MAX(BA$2:BA58)+1,0)","v":57},"CBO",{"$f":"IFERROR(VLOOKUP(ROWS(BC$3:BC59),$BA$3:$BB$292,2,0),\"\")","v":"CBO"}]
[null,null,null,null,null,null,null,null,null,null,null,"bromodiclorometano",null,null,null,null,null,null,null,null,null,null,null,null,null,null,null,null,null,null,null,null,null,null,null,null,null,null,null,null,null,null,null,null,null,null,null,null,null,null,null,null,{"$f":"IF(IFERROR(SEARCH($BB$1,BB60,1),0)>0,MAX(BA$2:BA59)+1,0)","v":58},"Césio 137",{"$f":"IFERROR(VLOOKUP(ROWS(BC$3:BC60),$BA$3:$BB$292,2,0),\"\")","v":"Césio 137"}]
[null,null,null,null,null,null,null,null,null,null,null,"Dose indicativa","--> Não pressupõe a análise dos radionuclídeos. Resultado inferido a partir do resultado da radiação alfa-total.",null,null,null,null,null,null,null,null,null,null,null,null,null,null,null,null,null,null,null,null,null,null,null,null,null,null,null,null,null,null,null,null,null,null,null,null,null,null,null,{"$f":"IF(IFERROR(SEARCH($BB$1,BB61,1),0)>0,MAX(BA$2:BA60)+1,0)","v":59},"Cheiro (diluição 1:20)-Água residual",{"$f":"IFERROR(VLOOKUP(ROWS(BC$3:BC61),$BA$3:$BB$292,2,0),\"\")","v":"Cheiro (diluição 1:20)-Água residual"}]
[null,null,null,null,null,null,null,null,null,null,null,"Alfa-total",null,null,null,null,null,null,null,null,null,null,null,null,null,null,null,null,null,null,null,null,null,null,null,null,null,null,null,null,null,null,null,null,null,null,null,null,null,null,null,null,{"$f":"IF(IFERROR(SEARCH($BB$1,BB62,1),0)>0,MAX(BA$2:BA61)+1,0)","v":60},"Cheiro, a 25ºC-Ág.não residual",{"$f":"IFERROR(VLOOKUP(ROWS(BC$3:BC62),$BA$3:$BB$292,2,0),\"\")","v":"Cheiro, a 25ºC-Ág.não residual"}]
[null,null,null,null,null,null,null,null,null,null,null,"Beta-total","--> A ERSAR concedeu automaticamente a dispensa da pesquisa deste parâmetro em todos os PE/ZA.",null,null,null,null,null,null,null,null,null,null,null,null,null,null,null,null,null,null,null,null,null,null,null,null,null,null,null,null,null,null,null,null,null,null,null,null,null,null,null,{"$f":"IF(IFERROR(SEARCH($BB$1,BB63,1),0)>0,MAX(BA$2:BA62)+1,0)","v":61},"Chumbo",{"$f":"IFERROR(VLOOKUP(ROWS(BC$3:BC63),$BA$3:$BB$292,2,0),\"\")","v":"Chumbo"}]
[null,null,null,null,null,null,null,null,null,null,null,"Radão",null,null,null,null,null,null,null,null,null,null,null,null,null,null,null,null,null,null,null,null,null,null,null,null,null,null,null,null,null,null,null,null,null,null,null,null,null,null,null,null,{"$f":"IF(IFERROR(SEARCH($BB$1,BB64,1),0)>0,MAX(BA$2:BA63)+1,0)","v":62},"Chumbo_PCQA_com Purga",{"$f":"IFERROR(VLOOKUP(ROWS(BC$3:BC64),$BA$3:$BB$292,2,0),\"\")","v":"Chumbo_PCQA_com Purga"}]
[null,null,null,null,null,null,null,null,null,null,null,"Acrilamida","--> Pode ser controlado(a) pelo cálculo da migração máxima do polímero, se usado, e em função das especificações fornecidas pelo fabricante.",null,null,null,null,null,null,null,null,null,null,null,null,null,null,null,null,null,null,null,null,null,null,null,null,null,null,null,null,null,null,null,null,null,null,null,null,null,null,null,{"$f":"IF(IFERROR(SEARCH($BB$1,BB65,1),0)>0,MAX(BA$2:BA64)+1,0)","v":63},"Chumbo_PCQA_sem Purga",{"$f":"IFERROR(VLOOKUP(ROWS(BC$3:BC65),$BA$3:$BB$292,2,0),\"\")","v":"Chumbo_PCQA_sem Purga"}]
[null,null,null,null,null,null,null,null,null,null,null,"Epicloridrina","--> Pode ser controlado(a) pelo cálculo da migração máxima do polímero, se usado, e em função das especificações fornecidas pelo fabricante.",null,null,null,null,null,null,null,null,null,null,null,null,null,null,null,null,null,null,null,null,null,null,null,null,null,null,null,null,null,null,null,null,null,null,null,null,null,null,null,{"$f":"IF(IFERROR(SEARCH($BB$1,BB66,1),0)>0,MAX(BA$2:BA65)+1,0)","v":64},"Cianeto",{"$f":"IFERROR(VLOOKUP(ROWS(BC$3:BC66),$BA$3:$BB$292,2,0),\"\")","v":"Cianeto"}]
[null,null,null,null,null,null,null,null,null,null,null,"Cloreto de vinilo","--> Pode ser controlado(a) pelo cálculo da migração máxima do polímero, se usado, e em função das especificações fornecidas pelo fabricante.",null,null,null,null,null,null,null,null,null,null,null,null,null,null,null,null,null,null,null,null,null,null,null,null,null,null,null,null,null,null,null,null,null,null,null,null,null,null,null,{"$f":"IF(IFERROR(SEARCH($BB$1,BB67,1),0)>0,MAX(BA$2:BA66)+1,0)","v":65},"Cianeto Livre",{"$f":"IFERROR(VLOOKUP(ROWS(BC$3:BC67),$BA$3:$BB$292,2,0),\"\")","v":"Cianeto Livre"}]
[null,null,null,null,null,null,null,null,null,null,null,"Trítio","--> A ERSAR concedeu automaticamente a dispensa da pesquisa do Trítio em todos os PE/ZA.",null,null,null,null,null,null,null,null,null,null,null,null,null,null,null,null,null,null,null,null,null,null,null,null,null,null,null,null,null,null,null,null,null,null,null,null,null,null,null,{"$f":"IF(IFERROR(SEARCH($BB$1,BB68,1),0)>0,MAX(BA$2:BA67)+1,0)","v":66},"Cianeto Total",{"$f":"IFERROR(VLOOKUP(ROWS(BC$3:BC68),$BA$3:$BB$292,2,0),\"\")","v":"Cianeto Total"}]
[null,null,null,null,null,null,null,null,null,null,null,null,null,null,null,null,null,null,null,null,null,null,null,null,null,null,null,null,null,null,null,null,null,null,null,null,null,null,null,null,null,null,null,null,null,null,null,null,null,null,null,null,{"$f":"IF(IFERROR(SEARCH($BB$1,BB69,1),0)>0,MAX(BA$2:BA68)+1,0)","v":67},"Cianobactérias",{"$f":"IFERROR(VLOOKUP(ROWS(BC$3:BC69),$BA$3:$BB$292,2,0),\"\")","v":"Cianobactérias"}]
[null,null,null,null,null,null,null,null,null,null,null,null,null,null,null,null,null,null,null,null,null,null,null,null,null,null,null,null,null,null,null,null,null,null,null,null,null,null,null,null,null,null,null,null,null,null,null,null,null,null,null,null,{"$f":"IF(IFERROR(SEARCH($BB$1,BB70,1),0)>0,MAX(BA$2:BA69)+1,0)","v":68},"Cimoxanil",{"$f":"IFERROR(VLOOKUP(ROWS(BC$3:BC70),$BA$3:$BB$292,2,0),\"\")","v":"Cimoxanil"}]
[null,null,null,null,null,null,null,null,null,null,null,null,null,null,null,null,null,null,null,null,null,null,null,null,null,null,null,null,null,null,null,null,null,null,null,null,null,null,null,null,null,null,null,null,null,null,null,null,null,null,null,null,{"$f":"IF(IFERROR(SEARCH($BB$1,BB71,1),0)>0,MAX(BA$2:BA70)+1,0)","v":69},"Clorato",{"$f":"IFERROR(VLOOKUP(ROWS(BC$3:BC71),$BA$3:$BB$292,2,0),\"\")","v":"Clorato"}]
[null,null,null,null,null,null,null,null,null,null,null,null,null,null,null,null,null,null,null,null,null,null,null,null,null,null,null,null,null,null,null,null,null,null,null,null,null,null,null,null,null,null,null,null,null,null,null,null,null,null,null,null,{"$f":"IF(IFERROR(SEARCH($BB$1,BB72,1),0)>0,MAX(BA$2:BA71)+1,0)","v":70},"Cloreto",{"$f":"IFERROR(VLOOKUP(ROWS(BC$3:BC72),$BA$3:$BB$292,2,0),\"\")","v":"Cloreto"}]
[null,null,null,null,null,null,null,null,null,null,null,null,null,null,null,null,null,null,null,null,null,null,null,null,null,null,null,null,null,null,null,null,null,null,null,null,null,null,null,null,null,null,null,null,null,null,null,null,null,null,null,null,{"$f":"IF(IFERROR(SEARCH($BB$1,BB73,1),0)>0,MAX(BA$2:BA72)+1,0)","v":71},"Cloreto de Vinilo",{"$f":"IFERROR(VLOOKUP(ROWS(BC$3:BC73),$BA$3:$BB$292,2,0),\"\")","v":"Cloreto de Vinilo"}]
[null,null,null,null,null,null,null,null,null,null,null,null,null,null,null,null,null,null,null,null,null,null,null,null,null,null,null,null,null,null,null,null,null,null,null,null,null,null,null,null,null,null,null,null,null,null,null,null,null,null,null,null,{"$f":"IF(IFERROR(SEARCH($BB$1,BB74,1),0)>0,MAX(BA$2:BA73)+1,0)","v":72},"Clorito",{"$f":"IFERROR(VLOOKUP(ROWS(BC$3:BC74),$BA$3:$BB$292,2,0),\"\")","v":"Clorito"}]
[null,null,null,null,null,null,null,null,null,null,null,null,null,null,null,null,null,null,null,null,null,null,null,null,null,null,null,null,null,null,null,null,null,null,null,null,null,null,null,null,null,null,null,null,null,null,null,null,null,null,null,null,{"$f":"IF(IFERROR(SEARCH($BB$1,BB75,1),0)>0,MAX(BA$2:BA74)+1,0)","v":73},"Cloro Combinado",{"$f":"IFERROR(VLOOKUP(ROWS(BC$3:BC75),$BA$3:$BB$292,2,0),\"\")","v":"Cloro Combinado"}]
[null,null,null,null,null,null,null,null,null,null,null,null,null,null,null,null,null,null,null,null,null,null,null,null,null,null,null,null,null,null,null,null,null,null,null,null,null,null,null,null,null,null,null,null,null,null,null,null,null,null,null,null,{"$f":"IF(IFERROR(SEARCH($BB$1,BB76,1),0)>0,MAX(BA$2:BA75)+1,0)","v":74},"Cloro Orgânico Total Extraível",{"$f":"IFERROR(VLOOKUP(ROWS(BC$3:BC76),$BA$3:$BB$292,2,0),\"\")","v":"Cloro Orgânico Total Extraível"}]
[null,null,null,null,null,null,null,null,null,null,null,null,null,null,null,null,null,null,null,null,null,null,null,null,null,null,null,null,null,null,null,null,null,null,null,null,null,null,null,null,null,null,null,null,null,null,null,null,null,null,null,null,{"$f":"IF(IFERROR(SEARCH($BB$1,BB77,1),0)>0,MAX(BA$2:BA76)+1,0)","v":75},"Cloro Residual Livre",{"$f":"IFERROR(VLOOKUP(ROWS(BC$3:BC77),$BA$3:$BB$292,2,0),\"\")","v":"Cloro Residual Livre"}]
[null,null,null,null,null,null,null,null,null,null,null,null,null,null,null,null,null,null,null,null,null,null,null,null,null,null,null,null,null,null,null,null,null,null,null,null,null,null,null,null,null,null,null,null,null,null,null,null,null,null,null,null,{"$f":"IF(IFERROR(SEARCH($BB$1,BB78,1),0)>0,MAX(BA$2:BA77)+1,0)","v":76},"Cloro Residual Total",{"$f":"IFERROR(VLOOKUP(ROWS(BC$3:BC78),$BA$3:$BB$292,2,0),\"\")","v":"Cloro Residual Total"}]
[null,null,null,null,null,null,null,null,null,null,null,null,null,null,null,null,null,null,null,null,null,null,null,null,null,null,null,null,null,null,null,null,null,null,null,null,null,null,null,null,null,null,null,null,null,null,null,null,null,null,null,null,{"$f":"IF(IFERROR(SEARCH($BB$1,BB79,1),0)>0,MAX(BA$2:BA78)+1,0)","v":77},"Clorofenóis",{"$f":"IFERROR(VLOOKUP(ROWS(BC$3:BC79),$BA$3:$BB$292,2,0),\"\")","v":"Clorofenóis"}]
[null,null,null,null,null,null,null,null,null,null,null,null,null,null,null,null,null,null,null,null,null,null,null,null,null,null,null,null,null,null,null,null,null,null,null,null,null,null,null,null,null,null,null,null,null,null,null,null,null,null,null,null,{"$f":"IF(IFERROR(SEARCH($BB$1,BB80,1),0)>0,MAX(BA$2:BA79)+1,0)","v":78},"Clorofila a",{"$f":"IFERROR(VLOOKUP(ROWS(BC$3:BC80),$BA$3:$BB$292,2,0),\"\")","v":"Clorofila a"}]
[null,null,null,null,null,null,null,null,null,null,null,null,null,null,null,null,null,null,null,null,null,null,null,null,null,null,null,null,null,null,null,null,null,null,null,null,null,null,null,null,null,null,null,null,null,null,null,null,null,null,null,null,{"$f":"IF(IFERROR(SEARCH($BB$1,BB81,1),0)>0,MAX(BA$2:BA80)+1,0)","v":79},"Clorofórmio",{"$f":"IFERROR(VLOOKUP(ROWS(BC$3:BC81),$BA$3:$BB$292,2,0),\"\")","v":"Clorofórmio"}]
[null,null,null,null,null,null,null,null,null,null,null,null,null,null,null,null,null,null,null,null,null,null,null,null,null,null,null,null,null,null,null,null,null,null,null,null,null,null,null,null,null,null,null,null,null,null,null,null,null,null,null,null,{"$f":"IF(IFERROR(SEARCH($BB$1,BB82,1),0)>0,MAX(BA$2:BA81)+1,0)","v":80},"Clorpirifos",{"$f":"IFERROR(VLOOKUP(ROWS(BC$3:BC82),$BA$3:$BB$292,2,0),\"\")","v":"Clorpirifos"}]
[null,null,null,null,null,null,null,null,null,null,null,null,null,null,null,null,null,null,null,null,null,null,null,null,null,null,null,null,null,null,null,null,null,null,null,null,null,null,null,null,null,null,null,null,null,null,null,null,null,null,null,null,{"$f":"IF(IFERROR(SEARCH($BB$1,BB83,1),0)>0,MAX(BA$2:BA82)+1,0)","v":81},"Clortalonil",{"$f":"IFERROR(VLOOKUP(ROWS(BC$3:BC83),$BA$3:$BB$292,2,0),\"\")","v":"Clortalonil"}]
[null,null,null,null,null,null,null,null,null,null,null,null,null,null,null,null,null,null,null,null,null,null,null,null,null,null,null,null,null,null,null,null,null,null,null,null,null,null,null,null,null,null,null,null,null,null,null,null,null,null,null,null,{"$f":"IF(IFERROR(SEARCH($BB$1,BB84,1),0)>0,MAX(BA$2:BA83)+1,0)","v":82},"Clortolurão",{"$f":"IFERROR(VLOOKUP(ROWS(BC$3:BC84),$BA$3:$BB$292,2,0),\"\")","v":"Clortolurão"}]
[null,null,null,null,null,null,null,null,null,null,null,null,null,null,null,null,null,null,null,null,null,null,null,null,null,null,null,null,null,null,null,null,null,null,null,null,null,null,null,null,null,null,null,null,null,null,null,null,null,null,null,null,{"$f":"IF(IFERROR(SEARCH($BB$1,BB85,1),0)>0,MAX(BA$2:BA84)+1,0)","v":83},"Clostrídium Perfringens (incluindo esporos)",{"$f":"IFERROR(VLOOKUP(ROWS(BC$3:BC85),$BA$3:$BB$292,2,0),\"\")","v":"Clostrídium Perfringens (incluindo esporos)"}]
[null,null,null,null,null,null,null,null,null,null,null,null,null,null,null,null,null,null,null,null,null,null,null,null,null,null,null,null,null,null,null,null,null,null,null,null,null,null,null,null,null,null,null,null,null,null,null,null,null,null,null,null,{"$f":"IF(IFERROR(SEARCH($BB$1,BB86,1),0)>0,MAX(BA$2:BA85)+1,0)","v":84},"Cobalto",{"$f":"IFERROR(VLOOKUP(ROWS(BC$3:BC86),$BA$3:$BB$292,2,0),\"\")","v":"Cobalto"}]
[null,null,null,null,null,null,null,null,null,null,null,null,null,null,null,null,null,null,null,null,null,null,null,null,null,null,null,null,null,null,null,null,null,null,null,null,null,null,null,null,null,null,null,null,null,null,null,null,null,null,null,null,{"$f":"IF(IFERROR(SEARCH($BB$1,BB87,1),0)>0,MAX(BA$2:BA86)+1,0)","v":85},"Cobre",{"$f":"IFERROR(VLOOKUP(ROWS(BC$3:BC87),$BA$3:$BB$292,2,0),\"\")","v":"Cobre"}]
[null,null,null,null,null,null,null,null,null,null,null,null,null,null,null,null,null,null,null,null,null,null,null,null,null,null,null,null,null,null,null,null,null,null,null,null,null,null,null,null,null,null,null,null,null,null,null,null,null,null,null,null,{"$f":"IF(IFERROR(SEARCH($BB$1,BB88,1),0)>0,MAX(BA$2:BA87)+1,0)","v":86},"Cobre Dissolvido",{"$f":"IFERROR(VLOOKUP(ROWS(BC$3:BC88),$BA$3:$BB$292,2,0),\"\")","v":"Cobre Dissolvido"}]
[null,null,null,null,null,null,null,null,null,null,null,null,null,null,null,null,null,null,null,null,null,null,null,null,null,null,null,null,null,null,null,null,null,null,null,null,null,null,null,null,null,null,null,null,null,null,null,null,null,null,null,null,{"$f":"IF(IFERROR(SEARCH($BB$1,BB89,1),0)>0,MAX(BA$2:BA88)+1,0)","v":87},"Cobre_PCQA_com Purga",{"$f":"IFERROR(VLOOKUP(ROWS(BC$3:BC89),$BA$3:$BB$292,2,0),\"\")","v":"Cobre_PCQA_com Purga"}]
[null,null,null,null,null,null,null,null,null,null,null,null,null,null,null,null,null,null,null,null,null,null,null,null,null,null,null,null,null,null,null,null,null,null,null,null,null,null,null,null,null,null,null,null,null,null,null,null,null,null,null,null,{"$f":"IF(IFERROR(SEARCH($BB$1,BB90,1),0)>0,MAX(BA$2:BA89)+1,0)","v":88},"Cobre_PCQA_sem Purga",{"$f":"IFERROR(VLOOKUP(ROWS(BC$3:BC90),$BA$3:$BB$292,2,0),\"\")","v":"Cobre_PCQA_sem Purga"}]
[null,null,null,null,null,null,null,null,null,null,null,null,null,null,null,null,null,null,null,null,null,null,null,null,null,null,null,null,null,null,null,null,null,null,null,null,null,null,null,null,null,null,null,null,null,null,null,null,null,null,null,null,{"$f":"IF(IFERROR(SEARCH($BB$1,BB91,1),0)>0,MAX(BA$2:BA90)+1,0)","v":89},"Colheita pelo CESAB_F.Q.",{"$f":"IFERROR(VLOOKUP(ROWS(BC$3:BC91),$BA$3:$BB$292,2,0),\"\")","v":"Colheita pelo CESAB_F.Q."}]
[null,null,null,null,null,null,null,null,null,null,null,null,null,null,null,null,null,null,null,null,null,null,null,null,null,null,null,null,null,null,null,null,null,null,null,null,null,null,null,null,null,null,null,null,null,null,null,null,null,null,null,null,{"$f":"IF(IFERROR(SEARCH($BB$1,BB92,1),0)>0,MAX(BA$2:BA91)+1,0)","v":90},"Colheita pelo CESAB_Microbiológica",{"$f":"IFERROR(VLOOKUP(ROWS(BC$3:BC92),$BA$3:$BB$292,2,0),\"\")","v":"Colheita pelo CESAB_Microbiológica"}]
[null,null,null,null,null,null,null,null,null,null,null,null,null,null,null,null,null,null,null,null,null,null,null,null,null,null,null,null,null,null,null,null,null,null,null,null,null,null,null,null,null,null,null,null,null,null,null,null,null,null,null,null,{"$f":"IF(IFERROR(SEARCH($BB$1,BB93,1),0)>0,MAX(BA$2:BA92)+1,0)","v":91},"Colheita residual composta_CESAB",{"$f":"IFERROR(VLOOKUP(ROWS(BC$3:BC93),$BA$3:$BB$292,2,0),\"\")","v":"Colheita residual composta_CESAB"}]
[null,null,null,null,null,null,null,null,null,null,null,null,null,null,null,null,null,null,null,null,null,null,null,null,null,null,null,null,null,null,null,null,null,null,null,null,null,null,null,null,null,null,null,null,null,null,null,null,null,null,null,null,{"$f":"IF(IFERROR(SEARCH($BB$1,BB94,1),0)>0,MAX(BA$2:BA93)+1,0)","v":92},"Colheita residual composta_Cliente",{"$f":"IFERROR(VLOOKUP(ROWS(BC$3:BC94),$BA$3:$BB$292,2,0),\"\")","v":"Colheita residual composta_Cliente"}]
[null,null,null,null,null,null,null,null,null,null,null,null,null,null,null,null,null,null,null,null,null,null,null,null,null,null,null,null,null,null,null,null,null,null,null,null,null,null,null,null,null,null,null,null,null,null,null,null,null,null,null,null,{"$f":"IF(IFERROR(SEARCH($BB$1,BB95,1),0)>0,MAX(BA$2:BA94)+1,0)","v":93},"Colheita residual simples_ CESAB",{"$f":"IFERROR(VLOOKUP(ROWS(BC$3:BC95),$BA$3:$BB$292,2,0),\"\")","v":"Colheita residual simples_ CESAB"}]
[null,null,null,null,null,null,null,null,null,null,null,null,null,null,null,null,null,null,null,null,null,null,null,null,null,null,null,null,null,null,null,null,null,null,null,null,null,null,null,null,null,null,null,null,null,null,null,null,null,null,null,null,{"$f":"IF(IFERROR(SEARCH($BB$1,BB96,1),0)>0,MAX(BA$2:BA95)+1,0)","v":94},"Colheita residual simples_ Cliente",{"$f":"IFERROR(VLOOKUP(ROWS(BC$3:BC96),$BA$3:$BB$292,2,0),\"\")","v":"Colheita residual simples_ Cliente"}]
[null,null,null,null,null,null,null,null,null,null,null,null,null,null,null,null,null,null,null,null,null,null,null,null,null,null,null,null,null,null,null,null,null,null,null,null,null,null,null,null,null,null,null,null,null,null,null,null,null,null,null,null,{"$f":"IF(IFERROR(SEARCH($BB$1,BB97,1),0)>0,MAX(BA$2:BA96)+1,0)","v":95},"Coliformes Fecais_Ág. Bruta/residual",{"$f":"IFERROR(VLOOKUP(ROWS(BC$3:BC97),$BA$3:$BB$292,2,0),\"\")","v":"Coliformes Fecais_Ág. Bruta/residual"}]
[null,null,null,null,null,null,null,null,null,null,null,null,null,null,null,null,null,null,null,null,null,null,null,null,null,null,null,null,null,null,null,null,null,null,null,null,null,null,null,null,null,null,null,null,null,null,null,null,null,null,null,null,{"$f":"IF(IFERROR(SEARCH($BB$1,BB98,1),0)>0,MAX(BA$2:BA97)+1,0)","v":96},"Coliformes Totais_Ág. Bruta/Residual",{"$f":"IFERROR(VLOOKUP(ROWS(BC$3:BC98),$BA$3:$BB$292,2,0),\"\")","v":"Coliformes Totais_Ág. Bruta/Residual"}]
[null,null,null,null,null,null,null,null,null,null,null,null,null,null,null,null,null,null,null,null,null,null,null,null,null,null,null,null,null,null,null,null,null,null,null,null,null,null,null,null,null,null,null,null,null,null,null,null,null,null,null,null,{"$f":"IF(IFERROR(SEARCH($BB$1,BB99,1),0)>0,MAX(BA$2:BA98)+1,0)","v":97},"Condutividade",{"$f":"IFERROR(VLOOKUP(ROWS(BC$3:BC99),$BA$3:$BB$292,2,0),\"\")","v":"Condutividade"}]
[null,null,null,null,null,null,null,null,null,null,null,null,null,null,null,null,null,null,null,null,null,null,null,null,null,null,null,null,null,null,null,null,null,null,null,null,null,null,null,null,null,null,null,null,null,null,null,null,null,null,null,null,{"$f":"IF(IFERROR(SEARCH($BB$1,BB100,1),0)>0,MAX(BA$2:BA99)+1,0)","v":98},"Cor",{"$f":"IFERROR(VLOOKUP(ROWS(BC$3:BC100),$BA$3:$BB$292,2,0),\"\")","v":"Cor"}]
[null,null,null,null,null,null,null,null,null,null,null,null,null,null,null,null,null,null,null,null,null,null,null,null,null,null,null,null,null,null,null,null,null,null,null,null,null,null,null,null,null,null,null,null,null,null,null,null,null,null,null,null,{"$f":"IF(IFERROR(SEARCH($BB$1,BB101,1),0)>0,MAX(BA$2:BA100)+1,0)","v":99},"Cor (diluição 1:20)-Ág. Residual",{"$f":"IFERROR(VLOOKUP(ROWS(BC$3:BC101),$BA$3:$BB$292,2,0),\"\")","v":"Cor (diluição 1:20)-Ág. Residual"}]
[null,null,null,null,null,null,null,null,null,null,null,null,null,null,null,null,null,null,null,null,null,null,null,null,null,null,null,null,null,null,null,null,null,null,null,null,null,null,null,null,null,null,null,null,null,null,null,null,null,null,null,null,{"$f":"IF(IFERROR(SEARCH($BB$1,BB102,1),0)>0,MAX(BA$2:BA101)+1,0)","v":100},"CQO",{"$f":"IFERROR(VLOOKUP(ROWS(BC$3:BC102),$BA$3:$BB$292,2,0),\"\")","v":"CQO"}]
[null,null,null,null,null,null,null,null,null,null,null,null,null,null,null,null,null,null,null,null,null,null,null,null,null,null,null,null,null,null,null,null,null,null,null,null,null,null,null,null,null,null,null,null,null,null,null,null,null,null,null,null,{"$f":"IF(IFERROR(SEARCH($BB$1,BB103,1),0)>0,MAX(BA$2:BA102)+1,0)","v":101},"Criseno",{"$f":"IFERROR(VLOOKUP(ROWS(BC$3:BC103),$BA$3:$BB$292,2,0),\"\")","v":"Criseno"}]
[null,null,null,null,null,null,null,null,null,null,null,null,null,null,null,null,null,null,null,null,null,null,null,null,null,null,null,null,null,null,null,null,null,null,null,null,null,null,null,null,null,null,null,null,null,null,null,null,null,null,null,null,{"$f":"IF(IFERROR(SEARCH($BB$1,BB104,1),0)>0,MAX(BA$2:BA103)+1,0)","v":102},"Crómio",{"$f":"IFERROR(VLOOKUP(ROWS(BC$3:BC104),$BA$3:$BB$292,2,0),\"\")","v":"Crómio"}]
[null,null,null,null,null,null,null,null,null,null,null,null,null,null,null,null,null,null,null,null,null,null,null,null,null,null,null,null,null,null,null,null,null,null,null,null,null,null,null,null,null,null,null,null,null,null,null,null,null,null,null,null,{"$f":"IF(IFERROR(SEARCH($BB$1,BB105,1),0)>0,MAX(BA$2:BA104)+1,0)","v":103},"Crómio Hexavalente",{"$f":"IFERROR(VLOOKUP(ROWS(BC$3:BC105),$BA$3:$BB$292,2,0),\"\")","v":"Crómio Hexavalente"}]
[null,null,null,null,null,null,null,null,null,null,null,null,null,null,null,null,null,null,null,null,null,null,null,null,null,null,null,null,null,null,null,null,null,null,null,null,null,null,null,null,null,null,null,null,null,null,null,null,null,null,null,null,{"$f":"IF(IFERROR(SEARCH($BB$1,BB106,1),0)>0,MAX(BA$2:BA105)+1,0)","v":104},"Crómio Trivalente",{"$f":"IFERROR(VLOOKUP(ROWS(BC$3:BC106),$BA$3:$BB$292,2,0),\"\")","v":"Crómio Trivalente"}]
[null,null,null,null,null,null,null,null,null,null,null,null,null,null,null,null,null,null,null,null,null,null,null,null,null,null,null,null,null,null,null,null,null,null,null,null,null,null,null,null,null,null,null,null,null,null,null,null,null,null,null,null,{"$f":"IF(IFERROR(SEARCH($BB$1,BB107,1),0)>0,MAX(BA$2:BA106)+1,0)","v":105},"Cryptosporidium spp",{"$f":"IFERROR(VLOOKUP(ROWS(BC$3:BC107),$BA$3:$BB$292,2,0),\"\")","v":"Cryptosporidium spp"}]
[null,null,null,null,null,null,null,null,null,null,null,null,null,null,null,null,null,null,null,null,null,null,null,null,null,null,null,null,null,null,null,null,null,null,null,null,null,null,null,null,null,null,null,null,null,null,null,null,null,null,null,null,{"$f":"IF(IFERROR(SEARCH($BB$1,BB108,1),0)>0,MAX(BA$2:BA107)+1,0)","v":106},"Desetilatrazina",{"$f":"IFERROR(VLOOKUP(ROWS(BC$3:BC108),$BA$3:$BB$292,2,0),\"\")","v":"Desetilatrazina"}]
[null,null,null,null,null,null,null,null,null,null,null,null,null,null,null,null,null,null,null,null,null,null,null,null,null,null,null,null,null,null,null,null,null,null,null,null,null,null,null,null,null,null,null,null,null,null,null,null,null,null,null,null,{"$f":"IF(IFERROR(SEARCH($BB$1,BB109,1),0)>0,MAX(BA$2:BA108)+1,0)","v":107},"Desetilterbutilazina",{"$f":"IFERROR(VLOOKUP(ROWS(BC$3:BC109),$BA$3:$BB$292,2,0),\"\")","v":"Desetilterbutilazina"}]
[null,null,null,null,null,null,null,null,null,null,null,null,null,null,null,null,null,null,null,null,null,null,null,null,null,null,null,null,null,null,null,null,null,null,null,null,null,null,null,null,null,null,null,null,null,null,null,null,null,null,null,null,{"$f":"IF(IFERROR(SEARCH($BB$1,BB110,1),0)>0,MAX(BA$2:BA109)+1,0)","v":108},"Desinfectante residual",{"$f":"IFERROR(VLOOKUP(ROWS(BC$3:BC110),$BA$3:$BB$292,2,0),\"\")","v":"Desinfectante residual"}]
[null,null,null,null,null,null,null,null,null,null,null,null,null,null,null,null,null,null,null,null,null,null,null,null,null,null,null,null,null,null,null,null,null,null,null,null,null,null,null,null,null,null,null,null,null,null,null,null,null,null,null,null,{"$f":"IF(IFERROR(SEARCH($BB$1,BB111,1),0)>0,MAX(BA$2:BA110)+1,0)","v":109},"Desinfetante Residual_Cliente",{"$f":"IFERROR(VLOOKUP(ROWS(BC$3:BC111),$BA$3:$BB$292,2,0),\"\")","v":"Desinfetante Residual_Cliente"}]
[null,null,null,null,null,null,null,null,null,null,null,null,null,null,null,null,null,null,null,null,null,null,null,null,null,null,null,null,null,null,null,null,null,null,null,null,null,null,null,null,null,null,null,null,null,null,null,null,null,null,null,null,{"$f":"IF(IFERROR(SEARCH($BB$1,BB112,1),0)>0,MAX(BA$2:BA111)+1,0)","v":110},"Detergentes",{"$f":"IFERROR(VLOOKUP(ROWS(BC$3:BC112),$BA$3:$BB$292,2,0),\"\")","v":"Detergentes"}]
[null,null,null,null,null,null,null,null,null,null,null,null,null,null,null,null,null,null,null,null,null,null,null,null,null,null,null,null,null,null,null,null,null,null,null,null,null,null,null,null,null,null,null,null,null,null,null,null,null,null,null,null,{"$f":"IF(IFERROR(SEARCH($BB$1,BB113,1),0)>0,MAX(BA$2:BA112)+1,0)","v":111},"Detergentes_[Amostragem Pontual]",{"$f":"IFERROR(VLOOKUP(ROWS(BC$3:BC113),$BA$3:$BB$292,2,0),\"\")","v":"Detergentes_[Amostragem Pontual]"}]
[null,null,null,null,null,null,null,null,null,null,null,null,null,null,null,null,null,null,null,null,null,null,null,null,null,null,null,null,null,null,null,null,null,null,null,null,null,null,null,null,null,null,null,null,null,null,null,null,null,null,null,null,{"$f":"IF(IFERROR(SEARCH($BB$1,BB114,1),0)>0,MAX(BA$2:BA113)+1,0)","v":112},"Diazinão",{"$f":"IFERROR(VLOOKUP(ROWS(BC$3:BC114),$BA$3:$BB$292,2,0),\"\")","v":"Diazinão"}]
[null,null,null,null,null,null,null,null,null,null,null,null,null,null,null,null,null,null,null,null,null,null,null,null,null,null,null,null,null,null,null,null,null,null,null,null,null,null,null,null,null,null,null,null,null,null,null,null,null,null,null,null,{"$f":"IF(IFERROR(SEARCH($BB$1,BB115,1),0)>0,MAX(BA$2:BA114)+1,0)","v":113},"Dibromoclorometano",{"$f":"IFERROR(VLOOKUP(ROWS(BC$3:BC115),$BA$3:$BB$292,2,0),\"\")","v":"Dibromoclorometano"}]
[null,null,null,null,null,null,null,null,null,null,null,null,null,null,null,null,null,null,null,null,null,null,null,null,null,null,null,null,null,null,null,null,null,null,null,null,null,null,null,null,null,null,null,null,null,null,null,null,null,null,null,null,{"$f":"IF(IFERROR(SEARCH($BB$1,BB116,1),0)>0,MAX(BA$2:BA115)+1,0)","v":114},"Diclorometano",{"$f":"IFERROR(VLOOKUP(ROWS(BC$3:BC116),$BA$3:$BB$292,2,0),\"\")","v":"Diclorometano"}]
[null,null,null,null,null,null,null,null,null,null,null,null,null,null,null,null,null,null,null,null,null,null,null,null,null,null,null,null,null,null,null,null,null,null,null,null,null,null,null,null,null,null,null,null,null,null,null,null,null,null,null,null,{"$f":"IF(IFERROR(SEARCH($BB$1,BB117,1),0)>0,MAX(BA$2:BA116)+1,0)","v":115},"Dieldrina",{"$f":"IFERROR(VLOOKUP(ROWS(BC$3:BC117),$BA$3:$BB$292,2,0),\"\")","v":"Dieldrina"}]
[null,null,null,null,null,null,null,null,null,null,null,null,null,null,null,null,null,null,null,null,null,null,null,null,null,null,null,null,null,null,null,null,null,null,null,null,null,null,null,null,null,null,null,null,null,null,null,null,null,null,null,null,{"$f":"IF(IFERROR(SEARCH($BB$1,BB118,1),0)>0,MAX(BA$2:BA117)+1,0)","v":116},"Dimetoato",{"$f":"IFERROR(VLOOKUP(ROWS(BC$3:BC118),$BA$3:$BB$292,2,0),\"\")","v":"Dimetoato"}]
[null,null,null,null,null,null,null,null,null,null,null,null,null,null,null,null,null,null,null,null,null,null,null,null,null,null,null,null,null,null,null,null,null,null,null,null,null,null,null,null,null,null,null,null,null,null,null,null,null,null,null,null,{"$f":"IF(IFERROR(SEARCH($BB$1,BB119,1),0)>0,MAX(BA$2:BA118)+1,0)","v":117},"Dióxido de Carbono",{"$f":"IFERROR(VLOOKUP(ROWS(BC$3:BC119),$BA$3:$BB$292,2,0),\"\")","v":"Dióxido de Carbono"}]
[null,null,null,null,null,null,null,null,null,null,null,null,null,null,null,null,null,null,null,null,null,null,null,null,null,null,null,null,null,null,null,null,null,null,null,null,null,null,null,null,null,null,null,null,null,null,null,null,null,null,null,null,{"$f":"IF(IFERROR(SEARCH($BB$1,BB120,1),0)>0,MAX(BA$2:BA119)+1,0)","v":118},"Dióxido de Cloro",{"$f":"IFERROR(VLOOKUP(ROWS(BC$3:BC120),$BA$3:$BB$292,2,0),\"\")","v":"Dióxido de Cloro"}]
[null,null,null,null,null,null,null,null,null,null,null,null,null,null,null,null,null,null,null,null,null,null,null,null,null,null,null,null,null,null,null,null,null,null,null,null,null,null,null,null,null,null,null,null,null,null,null,null,null,null,null,null,{"$f":"IF(IFERROR(SEARCH($BB$1,BB121,1),0)>0,MAX(BA$2:BA120)+1,0)","v":119},"Diurão",{"$f":"IFERROR(VLOOKUP(ROWS(BC$3:BC121),$BA$3:$BB$292,2,0),\"\")","v":"Diurão"}]
[null,null,null,null,null,null,null,null,null,null,null,null,null,null,null,null,null,null,null,null,null,null,null,null,null,null,null,null,null,null,null,null,null,null,null,null,null,null,null,null,null,null,null,null,null,null,null,null,null,null,null,null,{"$f":"IF(IFERROR(SEARCH($BB$1,BB122,1),0)>0,MAX(BA$2:BA121)+1,0)","v":120},"Dose Indicativa_Cálculo_Radionuclídeos",{"$f":"IFERROR(VLOOKUP(ROWS(BC$3:BC122),$BA$3:$BB$292,2,0),\"\")","v":"Dose Indicativa_Cálculo_Radionuclídeos"}]
[null,null,null,null,null,null,null,null,null,null,null,null,null,null,null,null,null,null,null,null,null,null,null,null,null,null,null,null,null,null,null,null,null,null,null,null,null,null,null,null,null,null,null,null,null,null,null,null,null,null,null,null,{"$f":"IF(IFERROR(SEARCH($BB$1,BB123,1),0)>0,MAX(BA$2:BA122)+1,0)","v":121},"Dose Indicativa_CI (mS/ano)",{"$f":"IFERROR(VLOOKUP(ROWS(BC$3:BC123),$BA$3:$BB$292,2,0),\"\")","v":"Dose Indicativa_CI (mS/ano)"}]
[null,null,null,null,null,null,null,null,null,null,null,null,null,null,null,null,null,null,null,null,null,null,null,null,null,null,null,null,null,null,null,null,null,null,null,null,null,null,null,null,null,null,null,null,null,null,null,null,null,null,null,null,{"$f":"IF(IFERROR(SEARCH($BB$1,BB124,1),0)>0,MAX(BA$2:BA123)+1,0)","v":122},"Dureza Total",{"$f":"IFERROR(VLOOKUP(ROWS(BC$3:BC124),$BA$3:$BB$292,2,0),\"\")","v":"Dureza Total"}]
[null,null,null,null,null,null,null,null,null,null,null,null,null,null,null,null,null,null,null,null,null,null,null,null,null,null,null,null,null,null,null,null,null,null,null,null,null,null,null,null,null,null,null,null,null,null,null,null,null,null,null,null,{"$f":"IF(IFERROR(SEARCH($BB$1,BB125,1),0)>0,MAX(BA$2:BA124)+1,0)","v":123},"Enterococos fecais",{"$f":"IFERROR(VLOOKUP(ROWS(BC$3:BC125),$BA$3:$BB$292,2,0),\"\")","v":"Enterococos fecais"}]
[null,null,null,null,null,null,null,null,null,null,null,null,null,null,null,null,null,null,null,null,null,null,null,null,null,null,null,null,null,null,null,null,null,null,null,null,null,null,null,null,null,null,null,null,null,null,null,null,null,null,null,null,{"$f":"IF(IFERROR(SEARCH($BB$1,BB126,1),0)>0,MAX(BA$2:BA125)+1,0)","v":124},"Enxofre",{"$f":"IFERROR(VLOOKUP(ROWS(BC$3:BC126),$BA$3:$BB$292,2,0),\"\")","v":"Enxofre"}]
[null,null,null,null,null,null,null,null,null,null,null,null,null,null,null,null,null,null,null,null,null,null,null,null,null,null,null,null,null,null,null,null,null,null,null,null,null,null,null,null,null,null,null,null,null,null,null,null,null,null,null,null,{"$f":"IF(IFERROR(SEARCH($BB$1,BB127,1),0)>0,MAX(BA$2:BA126)+1,0)","v":125},"Epicloridrina",{"$f":"IFERROR(VLOOKUP(ROWS(BC$3:BC127),$BA$3:$BB$292,2,0),\"\")","v":"Epicloridrina"}]
[null,null,null,null,null,null,null,null,null,null,null,null,null,null,null,null,null,null,null,null,null,null,null,null,null,null,null,null,null,null,null,null,null,null,null,null,null,null,null,null,null,null,null,null,null,null,null,null,null,null,null,null,{"$f":"IF(IFERROR(SEARCH($BB$1,BB128,1),0)>0,MAX(BA$2:BA127)+1,0)","v":126},"EPTC",{"$f":"IFERROR(VLOOKUP(ROWS(BC$3:BC128),$BA$3:$BB$292,2,0),\"\")","v":"EPTC"}]
[null,null,null,null,null,null,null,null,null,null,null,null,null,null,null,null,null,null,null,null,null,null,null,null,null,null,null,null,null,null,null,null,null,null,null,null,null,null,null,null,null,null,null,null,null,null,null,null,null,null,null,null,{"$f":"IF(IFERROR(SEARCH($BB$1,BB129,1),0)>0,MAX(BA$2:BA128)+1,0)","v":127},"Escherichia coli",{"$f":"IFERROR(VLOOKUP(ROWS(BC$3:BC129),$BA$3:$BB$292,2,0),\"\")","v":"Escherichia coli"}]
[null,null,null,null,null,null,null,null,null,null,null,null,null,null,null,null,null,null,null,null,null,null,null,null,null,null,null,null,null,null,null,null,null,null,null,null,null,null,null,null,null,null,null,null,null,null,null,null,null,null,null,null,{"$f":"IF(IFERROR(SEARCH($BB$1,BB130,1),0)>0,MAX(BA$2:BA129)+1,0)","v":128},"Estafilococos Produtores de Coagulase",{"$f":"IFERROR(VLOOKUP(ROWS(BC$3:BC130),$BA$3:$BB$292,2,0),\"\")","v":"Estafilococos Produtores de Coagulase"}]
[null,null,null,null,null,null,null,null,null,null,null,null,null,null,null,null,null,null,null,null,null,null,null,null,null,null,null,null,null,null,null,null,null,null,null,null,null,null,null,null,null,null,null,null,null,null,null,null,null,null,null,null,{"$f":"IF(IFERROR(SEARCH($BB$1,BB131,1),0)>0,MAX(BA$2:BA130)+1,0)","v":129},"Estafilococos Totais",{"$f":"IFERROR(VLOOKUP(ROWS(BC$3:BC131),$BA$3:$BB$292,2,0),\"\")","v":"Estafilococos Totais"}]
[null,null,null,null,null,null,null,null,null,null,null,null,null,null,null,null,null,null,null,null,null,null,null,null,null,null,null,null,null,null,null,null,null,null,null,null,null,null,null,null,null,null,null,null,null,null,null,null,null,null,null,null,{"$f":"IF(IFERROR(SEARCH($BB$1,BB132,1),0)>0,MAX(BA$2:BA131)+1,0)","v":130},"Estanho",{"$f":"IFERROR(VLOOKUP(ROWS(BC$3:BC132),$BA$3:$BB$292,2,0),\"\")","v":"Estanho"}]
[null,null,null,null,null,null,null,null,null,null,null,null,null,null,null,null,null,null,null,null,null,null,null,null,null,null,null,null,null,null,null,null,null,null,null,null,null,null,null,null,null,null,null,null,null,null,null,null,null,null,null,null,{"$f":"IF(IFERROR(SEARCH($BB$1,BB133,1),0)>0,MAX(BA$2:BA132)+1,0)","v":131},"Estreptococos Fecais (Enterococos)",{"$f":"IFERROR(VLOOKUP(ROWS(BC$3:BC133),$BA$3:$BB$292,2,0),\"\")","v":"Estreptococos Fecais (Enterococos)"}]
[null,null,null,null,null,null,null,null,null,null,null,null,null,null,null,null,null,null,null,null,null,null,null,null,null,null,null,null,null,null,null,null,null,null,null,null,null,null,null,null,null,null,null,null,null,null,null,null,null,null,null,null,{"$f":"IF(IFERROR(SEARCH($BB$1,BB134,1),0)>0,MAX(BA$2:BA133)+1,0)","v":132},"Estrôncio",{"$f":"IFERROR(VLOOKUP(ROWS(BC$3:BC134),$BA$3:$BB$292,2,0),\"\")","v":"Estrôncio"}]
[null,null,null,null,null,null,null,null,null,null,null,null,null,null,null,null,null,null,null,null,null,null,null,null,null,null,null,null,null,null,null,null,null,null,null,null,null,null,null,null,null,null,null,null,null,null,null,null,null,null,null,null,{"$f":"IF(IFERROR(SEARCH($BB$1,BB135,1),0)>0,MAX(BA$2:BA134)+1,0)","v":133},"Estrôncio 90",{"$f":"IFERROR(VLOOKUP(ROWS(BC$3:BC135),$BA$3:$BB$292,2,0),\"\")","v":"Estrôncio 90"}]
[null,null,null,null,null,null,null,null,null,null,null,null,null,null,null,null,null,null,null,null,null,null,null,null,null,null,null,null,null,null,null,null,null,null,null,null,null,null,null,null,null,null,null,null,null,null,null,null,null,null,null,null,{"$f":"IF(IFERROR(SEARCH($BB$1,BB136,1),0)>0,MAX(BA$2:BA135)+1,0)","v":134},"Etião",{"$f":"IFERROR(VLOOKUP(ROWS(BC$3:BC136),$BA$3:$BB$292,2,0),\"\")","v":"Etião"}]
[null,null,null,null,null,null,null,null,null,null,null,null,null,null,null,null,null,null,null,null,null,null,null,null,null,null,null,null,null,null,null,null,null,null,null,null,null,null,null,null,null,null,null,null,null,null,null,null,null,null,null,null,{"$f":"IF(IFERROR(SEARCH($BB$1,BB137,1),0)>0,MAX(BA$2:BA136)+1,0)","v":135},"Etilbenzeno",{"$f":"IFERROR(VLOOKUP(ROWS(BC$3:BC137),$BA$3:$BB$292,2,0),\"\")","v":"Etilbenzeno"}]
[null,null,null,null,null,null,null,null,null,null,null,null,null,null,null,null,null,null,null,null,null,null,null,null,null,null,null,null,null,null,null,null,null,null,null,null,null,null,null,null,null,null,null,null,null,null,null,null,null,null,null,null,{"$f":"IF(IFERROR(SEARCH($BB$1,BB138,1),0)>0,MAX(BA$2:BA137)+1,0)","v":136},"Fenantreno",{"$f":"IFERROR(VLOOKUP(ROWS(BC$3:BC138),$BA$3:$BB$292,2,0),\"\")","v":"Fenantreno"}]
[null,null,null,null,null,null,null,null,null,null,null,null,null,null,null,null,null,null,null,null,null,null,null,null,null,null,null,null,null,null,null,null,null,null,null,null,null,null,null,null,null,null,null,null,null,null,null,null,null,null,null,null,{"$f":"IF(IFERROR(SEARCH($BB$1,BB139,1),0)>0,MAX(BA$2:BA138)+1,0)","v":137},"Fenóis",{"$f":"IFERROR(VLOOKUP(ROWS(BC$3:BC139),$BA$3:$BB$292,2,0),\"\")","v":"Fenóis"}]
[null,null,null,null,null,null,null,null,null,null,null,null,null,null,null,null,null,null,null,null,null,null,null,null,null,null,null,null,null,null,null,null,null,null,null,null,null,null,null,null,null,null,null,null,null,null,null,null,null,null,null,null,{"$f":"IF(IFERROR(SEARCH($BB$1,BB140,1),0)>0,MAX(BA$2:BA139)+1,0)","v":138},"Ferro",{"$f":"IFERROR(VLOOKUP(ROWS(BC$3:BC140),$BA$3:$BB$292,2,0),\"\")","v":"Ferro"}]
[null,null,null,null,null,null,null,null,null,null,null,null,null,null,null,null,null,null,null,null,null,null,null,null,null,null,null,null,null,null,null,null,null,null,null,null,null,null,null,null,null,null,null,null,null,null,null,null,null,null,null,null,{"$f":"IF(IFERROR(SEARCH($BB$1,BB141,1),0)>0,MAX(BA$2:BA140)+1,0)","v":139},"Ferro (III)",{"$f":"IFERROR(VLOOKUP(ROWS(BC$3:BC141),$BA$3:$BB$292,2,0),\"\")","v":"Ferro (III)"}]
[null,null,null,null,null,null,null,null,null,null,null,null,null,null,null,null,null,null,null,null,null,null,null,null,null,null,null,null,null,null,null,null,null,null,null,null,null,null,null,null,null,null,null,null,null,null,null,null,null,null,null,null,{"$f":"IF(IFERROR(SEARCH($BB$1,BB142,1),0)>0,MAX(BA$2:BA141)+1,0)","v":140},"Ferro dissolvido",{"$f":"IFERROR(VLOOKUP(ROWS(BC$3:BC142),$BA$3:$BB$292,2,0),\"\")","v":"Ferro dissolvido"}]
[null,null,null,null,null,null,null,null,null,null,null,null,null,null,null,null,null,null,null,null,null,null,null,null,null,null,null,null,null,null,null,null,null,null,null,null,null,null,null,null,null,null,null,null,null,null,null,null,null,null,null,null,{"$f":"IF(IFERROR(SEARCH($BB$1,BB143,1),0)>0,MAX(BA$2:BA142)+1,0)","v":141},"Fitoplancton total",{"$f":"IFERROR(VLOOKUP(ROWS(BC$3:BC143),$BA$3:$BB$292,2,0),\"\")","v":"Fitoplancton total"}]
[null,null,null,null,null,null,null,null,null,null,null,null,null,null,null,null,null,null,null,null,null,null,null,null,null,null,null,null,null,null,null,null,null,null,null,null,null,null,null,null,null,null,null,null,null,null,null,null,null,null,null,null,{"$f":"IF(IFERROR(SEARCH($BB$1,BB144,1),0)>0,MAX(BA$2:BA143)+1,0)","v":142},"Fluoranteno",{"$f":"IFERROR(VLOOKUP(ROWS(BC$3:BC144),$BA$3:$BB$292,2,0),\"\")","v":"Fluoranteno"}]
[null,null,null,null,null,null,null,null,null,null,null,null,null,null,null,null,null,null,null,null,null,null,null,null,null,null,null,null,null,null,null,null,null,null,null,null,null,null,null,null,null,null,null,null,null,null,null,null,null,null,null,null,{"$f":"IF(IFERROR(SEARCH($BB$1,BB145,1),0)>0,MAX(BA$2:BA144)+1,0)","v":143},"Fluoretos",{"$f":"IFERROR(VLOOKUP(ROWS(BC$3:BC145),$BA$3:$BB$292,2,0),\"\")","v":"Fluoretos"}]
[null,null,null,null,null,null,null,null,null,null,null,null,null,null,null,null,null,null,null,null,null,null,null,null,null,null,null,null,null,null,null,null,null,null,null,null,null,null,null,null,null,null,null,null,null,null,null,null,null,null,null,null,{"$f":"IF(IFERROR(SEARCH($BB$1,BB146,1),0)>0,MAX(BA$2:BA145)+1,0)","v":144},"Fosfato",{"$f":"IFERROR(VLOOKUP(ROWS(BC$3:BC146),$BA$3:$BB$292,2,0),\"\")","v":"Fosfato"}]
[null,null,null,null,null,null,null,null,null,null,null,null,null,null,null,null,null,null,null,null,null,null,null,null,null,null,null,null,null,null,null,null,null,null,null,null,null,null,null,null,null,null,null,null,null,null,null,null,null,null,null,null,{"$f":"IF(IFERROR(SEARCH($BB$1,BB147,1),0)>0,MAX(BA$2:BA146)+1,0)","v":145},"Fósforo Total",{"$f":"IFERROR(VLOOKUP(ROWS(BC$3:BC147),$BA$3:$BB$292,2,0),\"\")","v":"Fósforo Total"}]
[null,null,null,null,null,null,null,null,null,null,null,null,null,null,null,null,null,null,null,null,null,null,null,null,null,null,null,null,null,null,null,null,null,null,null,null,null,null,null,null,null,null,null,null,null,null,null,null,null,null,null,null,{"$f":"IF(IFERROR(SEARCH($BB$1,BB148,1),0)>0,MAX(BA$2:BA147)+1,0)","v":146},"Fósforo Total_[Amostragem Pontual]",{"$f":"IFERROR(VLOOKUP(ROWS(BC$3:BC148),$BA$3:$BB$292,2,0),\"\")","v":"Fósforo Total_[Amostragem Pontual]"}]
[null,null,null,null,null,null,null,null,null,null,null,null,null,null,null,null,null,null,null,null,null,null,null,null,null,null,null,null,null,null,null,null,null,null,null,null,null,null,null,null,null,null,null,null,null,null,null,null,null,null,null,null,{"$f":"IF(IFERROR(SEARCH($BB$1,BB149,1),0)>0,MAX(BA$2:BA148)+1,0)","v":147},"Fosmete",{"$f":"IFERROR(VLOOKUP(ROWS(BC$3:BC149),$BA$3:$BB$292,2,0),\"\")","v":"Fosmete"}]
[null,null,null,null,null,null,null,null,null,null,null,null,null,null,null,null,null,null,null,null,null,null,null,null,null,null,null,null,null,null,null,null,null,null,null,null,null,null,null,null,null,null,null,null,null,null,null,null,null,null,null,null,{"$f":"IF(IFERROR(SEARCH($BB$1,BB150,1),0)>0,MAX(BA$2:BA149)+1,0)","v":148},"Glifosato",{"$f":"IFERROR(VLOOKUP(ROWS(BC$3:BC150),$BA$3:$BB$292,2,0),\"\")","v":"Glifosato"}]
[null,null,null,null,null,null,null,null,null,null,null,null,null,null,null,null,null,null,null,null,null,null,null,null,null,null,null,null,null,null,null,null,null,null,null,null,null,null,null,null,null,null,null,null,null,null,null,null,null,null,null,null,{"$f":"IF(IFERROR(SEARCH($BB$1,BB151,1),0)>0,MAX(BA$2:BA150)+1,0)","v":149},"Heptacloro",{"$f":"IFERROR(VLOOKUP(ROWS(BC$3:BC151),$BA$3:$BB$292,2,0),\"\")","v":"Heptacloro"}]
[null,null,null,null,null,null,null,null,null,null,null,null,null,null,null,null,null,null,null,null,null,null,null,null,null,null,null,null,null,null,null,null,null,null,null,null,null,null,null,null,null,null,null,null,null,null,null,null,null,null,null,null,{"$f":"IF(IFERROR(SEARCH($BB$1,BB152,1),0)>0,MAX(BA$2:BA151)+1,0)","v":150},"Heptacloro epóxido",{"$f":"IFERROR(VLOOKUP(ROWS(BC$3:BC152),$BA$3:$BB$292,2,0),\"\")","v":"Heptacloro epóxido"}]
[null,null,null,null,null,null,null,null,null,null,null,null,null,null,null,null,null,null,null,null,null,null,null,null,null,null,null,null,null,null,null,null,null,null,null,null,null,null,null,null,null,null,null,null,null,null,null,null,null,null,null,null,{"$f":"IF(IFERROR(SEARCH($BB$1,BB153,1),0)>0,MAX(BA$2:BA152)+1,0)","v":151},"Hexaclorobenzeno (HCB)",{"$f":"IFERROR(VLOOKUP(ROWS(BC$3:BC153),$BA$3:$BB$292,2,0),\"\")","v":"Hexaclorobenzeno (HCB)"}]
[null,null,null,null,null,null,null,null,null,null,null,null,null,null,null,null,null,null,null,null,null,null,null,null,null,null,null,null,null,null,null,null,null,null,null,null,null,null,null,null,null,null,null,null,null,null,null,null,null,null,null,null,{"$f":"IF(IFERROR(SEARCH($BB$1,BB154,1),0)>0,MAX(BA$2:BA153)+1,0)","v":152},"Hexaclorobutadieno(HCBD)",{"$f":"IFERROR(VLOOKUP(ROWS(BC$3:BC154),$BA$3:$BB$292,2,0),\"\")","v":"Hexaclorobutadieno(HCBD)"}]
[null,null,null,null,null,null,null,null,null,null,null,null,null,null,null,null,null,null,null,null,null,null,null,null,null,null,null,null,null,null,null,null,null,null,null,null,null,null,null,null,null,null,null,null,null,null,null,null,null,null,null,null,{"$f":"IF(IFERROR(SEARCH($BB$1,BB155,1),0)>0,MAX(BA$2:BA154)+1,0)","v":153},"Hexaclorociclohexano",{"$f":"IFERROR(VLOOKUP(ROWS(BC$3:BC155),$BA$3:$BB$292,2,0),\"\")","v":"Hexaclorociclohexano"}]
[null,null,null,null,null,null,null,null,null,null,null,null,null,null,null,null,null,null,null,null,null,null,null,null,null,null,null,null,null,null,null,null,null,null,null,null,null,null,null,null,null,null,null,null,null,null,null,null,null,null,null,null,{"$f":"IF(IFERROR(SEARCH($BB$1,BB156,1),0)>0,MAX(BA$2:BA155)+1,0)","v":154},"Hidrocarbonetos (C10 a C40)",{"$f":"IFERROR(VLOOKUP(ROWS(BC$3:BC156),$BA$3:$BB$292,2,0),\"\")","v":"Hidrocarbonetos (C10 a C40)"}]
[null,null,null,null,null,null,null,null,null,null,null,null,null,null,null,null,null,null,null,null,null,null,null,null,null,null,null,null,null,null,null,null,null,null,null,null,null,null,null,null,null,null,null,null,null,null,null,null,null,null,null,null,{"$f":"IF(IFERROR(SEARCH($BB$1,BB157,1),0)>0,MAX(BA$2:BA156)+1,0)","v":155},"Hidrocarbonetos Aromáticos Policíclicos (HAP)",{"$f":"IFERROR(VLOOKUP(ROWS(BC$3:BC157),$BA$3:$BB$292,2,0),\"\")","v":"Hidrocarbonetos Aromáticos Policíclicos (HAP)"}]
[null,null,null,null,null,null,null,null,null,null,null,null,null,null,null,null,null,null,null,null,null,null,null,null,null,null,null,null,null,null,null,null,null,null,null,null,null,null,null,null,null,null,null,null,null,null,null,null,null,null,null,null,{"$f":"IF(IFERROR(SEARCH($BB$1,BB158,1),0)>0,MAX(BA$2:BA157)+1,0)","v":156},"Hidrocarbonetos Dissolvidos e Emulsionados",{"$f":"IFERROR(VLOOKUP(ROWS(BC$3:BC158),$BA$3:$BB$292,2,0),\"\")","v":"Hidrocarbonetos Dissolvidos e Emulsionados"}]
[null,null,null,null,null,null,null,null,null,null,null,null,null,null,null,null,null,null,null,null,null,null,null,null,null,null,null,null,null,null,null,null,null,null,null,null,null,null,null,null,null,null,null,null,null,null,null,null,null,null,null,null,{"$f":"IF(IFERROR(SEARCH($BB$1,BB159,1),0)>0,MAX(BA$2:BA158)+1,0)","v":157},"Hidrocarbonetos Totais",{"$f":"IFERROR(VLOOKUP(ROWS(BC$3:BC159),$BA$3:$BB$292,2,0),\"\")","v":"Hidrocarbonetos Totais"}]
[null,null,null,null,null,null,null,null,null,null,null,null,null,null,null,null,null,null,null,null,null,null,null,null,null,null,null,null,null,null,null,null,null,null,null,null,null,null,null,null,null,null,null,null,null,null,null,null,null,null,null,null,{"$f":"IF(IFERROR(SEARCH($BB$1,BB160,1),0)>0,MAX(BA$2:BA159)+1,0)","v":158},"Humidade",{"$f":"IFERROR(VLOOKUP(ROWS(BC$3:BC160),$BA$3:$BB$292,2,0),\"\")","v":"Humidade"}]
[null,null,null,null,null,null,null,null,null,null,null,null,null,null,null,null,null,null,null,null,null,null,null,null,null,null,null,null,null,null,null,null,null,null,null,null,null,null,null,null,null,null,null,null,null,null,null,null,null,null,null,null,{"$f":"IF(IFERROR(SEARCH($BB$1,BB161,1),0)>0,MAX(BA$2:BA160)+1,0)","v":159},"Imidaclopride",{"$f":"IFERROR(VLOOKUP(ROWS(BC$3:BC161),$BA$3:$BB$292,2,0),\"\")","v":"Imidaclopride"}]
[null,null,null,null,null,null,null,null,null,null,null,null,null,null,null,null,null,null,null,null,null,null,null,null,null,null,null,null,null,null,null,null,null,null,null,null,null,null,null,null,null,null,null,null,null,null,null,null,null,null,null,null,{"$f":"IF(IFERROR(SEARCH($BB$1,BB162,1),0)>0,MAX(BA$2:BA161)+1,0)","v":160},"Indeno(1,2,3cd)pireno",{"$f":"IFERROR(VLOOKUP(ROWS(BC$3:BC162),$BA$3:$BB$292,2,0),\"\")","v":"Indeno(1,2,3cd)pireno"}]
[null,null,null,null,null,null,null,null,null,null,null,null,null,null,null,null,null,null,null,null,null,null,null,null,null,null,null,null,null,null,null,null,null,null,null,null,null,null,null,null,null,null,null,null,null,null,null,null,null,null,null,null,{"$f":"IF(IFERROR(SEARCH($BB$1,BB163,1),0)>0,MAX(BA$2:BA162)+1,0)","v":161},"Langelier (IL)",{"$f":"IFERROR(VLOOKUP(ROWS(BC$3:BC163),$BA$3:$BB$292,2,0),\"\")","v":"Langelier (IL)"}]
[null,null,null,null,null,null,null,null,null,null,null,null,null,null,null,null,null,null,null,null,null,null,null,null,null,null,null,null,null,null,null,null,null,null,null,null,null,null,null,null,null,null,null,null,null,null,null,null,null,null,null,null,{"$f":"IF(IFERROR(SEARCH($BB$1,BB164,1),0)>0,MAX(BA$2:BA163)+1,0)","v":162},"LAS",{"$f":"IFERROR(VLOOKUP(ROWS(BC$3:BC164),$BA$3:$BB$292,2,0),\"\")","v":"LAS"}]
[null,null,null,null,null,null,null,null,null,null,null,null,null,null,null,null,null,null,null,null,null,null,null,null,null,null,null,null,null,null,null,null,null,null,null,null,null,null,null,null,null,null,null,null,null,null,null,null,null,null,null,null,{"$f":"IF(IFERROR(SEARCH($BB$1,BB165,1),0)>0,MAX(BA$2:BA164)+1,0)","v":163},"Legionella pneumophila",{"$f":"IFERROR(VLOOKUP(ROWS(BC$3:BC165),$BA$3:$BB$292,2,0),\"\")","v":"Legionella pneumophila"}]
[null,null,null,null,null,null,null,null,null,null,null,null,null,null,null,null,null,null,null,null,null,null,null,null,null,null,null,null,null,null,null,null,null,null,null,null,null,null,null,null,null,null,null,null,null,null,null,null,null,null,null,null,{"$f":"IF(IFERROR(SEARCH($BB$1,BB166,1),0)>0,MAX(BA$2:BA165)+1,0)","v":164},"Legionella spp.",{"$f":"IFERROR(VLOOKUP(ROWS(BC$3:BC166),$BA$3:$BB$292,2,0),\"\")","v":"Legionella spp."}]
[null,null,null,null,null,null,null,null,null,null,null,null,null,null,null,null,null,null,null,null,null,null,null,null,null,null,null,null,null,null,null,null,null,null,null,null,null,null,null,null,null,null,null,null,null,null,null,null,null,null,null,null,{"$f":"IF(IFERROR(SEARCH($BB$1,BB167,1),0)>0,MAX(BA$2:BA166)+1,0)","v":165},"Lindano",{"$f":"IFERROR(VLOOKUP(ROWS(BC$3:BC167),$BA$3:$BB$292,2,0),\"\")","v":"Lindano"}]
[null,null,null,null,null,null,null,null,null,null,null,null,null,null,null,null,null,null,null,null,null,null,null,null,null,null,null,null,null,null,null,null,null,null,null,null,null,null,null,null,null,null,null,null,null,null,null,null,null,null,null,null,{"$f":"IF(IFERROR(SEARCH($BB$1,BB168,1),0)>0,MAX(BA$2:BA167)+1,0)","v":166},"Linurão",{"$f":"IFERROR(VLOOKUP(ROWS(BC$3:BC168),$BA$3:$BB$292,2,0),\"\")","v":"Linurão"}]
[null,null,null,null,null,null,null,null,null,null,null,null,null,null,null,null,null,null,null,null,null,null,null,null,null,null,null,null,null,null,null,null,null,null,null,null,null,null,null,null,null,null,null,null,null,null,null,null,null,null,null,null,{"$f":"IF(IFERROR(SEARCH($BB$1,BB169,1),0)>0,MAX(BA$2:BA168)+1,0)","v":167},"Lítio",{"$f":"IFERROR(VLOOKUP(ROWS(BC$3:BC169),$BA$3:$BB$292,2,0),\"\")","v":"Lítio"}]
[null,null,null,null,null,null,null,null,null,null,null,null,null,null,null,null,null,null,null,null,null,null,null,null,null,null,null,null,null,null,null,null,null,null,null,null,null,null,null,null,null,null,null,null,null,null,null,null,null,null,null,null,{"$f":"IF(IFERROR(SEARCH($BB$1,BB170,1),0)>0,MAX(BA$2:BA169)+1,0)","v":168},"m,p -xileno",{"$f":"IFERROR(VLOOKUP(ROWS(BC$3:BC170),$BA$3:$BB$292,2,0),\"\")","v":"m,p -xileno"}]
[null,null,null,null,null,null,null,null,null,null,null,null,null,null,null,null,null,null,null,null,null,null,null,null,null,null,null,null,null,null,null,null,null,null,null,null,null,null,null,null,null,null,null,null,null,null,null,null,null,null,null,null,{"$f":"IF(IFERROR(SEARCH($BB$1,BB171,1),0)>0,MAX(BA$2:BA170)+1,0)","v":169},"Magnésio",{"$f":"IFERROR(VLOOKUP(ROWS(BC$3:BC171),$BA$3:$BB$292,2,0),\"\")","v":"Magnésio"}]
[null,null,null,null,null,null,null,null,null,null,null,null,null,null,null,null,null,null,null,null,null,null,null,null,null,null,null,null,null,null,null,null,null,null,null,null,null,null,null,null,null,null,null,null,null,null,null,null,null,null,null,null,{"$f":"IF(IFERROR(SEARCH($BB$1,BB172,1),0)>0,MAX(BA$2:BA171)+1,0)","v":170},"Malatião",{"$f":"IFERROR(VLOOKUP(ROWS(BC$3:BC172),$BA$3:$BB$292,2,0),\"\")","v":"Malatião"}]
[null,null,null,null,null,null,null,null,null,null,null,null,null,null,null,null,null,null,null,null,null,null,null,null,null,null,null,null,null,null,null,null,null,null,null,null,null,null,null,null,null,null,null,null,null,null,null,null,null,null,null,null,{"$f":"IF(IFERROR(SEARCH($BB$1,BB173,1),0)>0,MAX(BA$2:BA172)+1,0)","v":171},"Mancozebe",{"$f":"IFERROR(VLOOKUP(ROWS(BC$3:BC173),$BA$3:$BB$292,2,0),\"\")","v":"Mancozebe"}]
[null,null,null,null,null,null,null,null,null,null,null,null,null,null,null,null,null,null,null,null,null,null,null,null,null,null,null,null,null,null,null,null,null,null,null,null,null,null,null,null,null,null,null,null,null,null,null,null,null,null,null,null,{"$f":"IF(IFERROR(SEARCH($BB$1,BB174,1),0)>0,MAX(BA$2:BA173)+1,0)","v":172},"Manganês",{"$f":"IFERROR(VLOOKUP(ROWS(BC$3:BC174),$BA$3:$BB$292,2,0),\"\")","v":"Manganês"}]
[null,null,null,null,null,null,null,null,null,null,null,null,null,null,null,null,null,null,null,null,null,null,null,null,null,null,null,null,null,null,null,null,null,null,null,null,null,null,null,null,null,null,null,null,null,null,null,null,null,null,null,null,{"$f":"IF(IFERROR(SEARCH($BB$1,BB175,1),0)>0,MAX(BA$2:BA174)+1,0)","v":173},"Matéria Orgânica",{"$f":"IFERROR(VLOOKUP(ROWS(BC$3:BC175),$BA$3:$BB$292,2,0),\"\")","v":"Matéria Orgânica"}]
[null,null,null,null,null,null,null,null,null,null,null,null,null,null,null,null,null,null,null,null,null,null,null,null,null,null,null,null,null,null,null,null,null,null,null,null,null,null,null,null,null,null,null,null,null,null,null,null,null,null,null,null,{"$f":"IF(IFERROR(SEARCH($BB$1,BB176,1),0)>0,MAX(BA$2:BA175)+1,0)","v":174},"Matéria Seca",{"$f":"IFERROR(VLOOKUP(ROWS(BC$3:BC176),$BA$3:$BB$292,2,0),\"\")","v":"Matéria Seca"}]
[null,null,null,null,null,null,null,null,null,null,null,null,null,null,null,null,null,null,null,null,null,null,null,null,null,null,null,null,null,null,null,null,null,null,null,null,null,null,null,null,null,null,null,null,null,null,null,null,null,null,null,null,{"$f":"IF(IFERROR(SEARCH($BB$1,BB177,1),0)>0,MAX(BA$2:BA176)+1,0)","v":175},"MCPA",{"$f":"IFERROR(VLOOKUP(ROWS(BC$3:BC177),$BA$3:$BB$292,2,0),\"\")","v":"MCPA"}]
[null,null,null,null,null,null,null,null,null,null,null,null,null,null,null,null,null,null,null,null,null,null,null,null,null,null,null,null,null,null,null,null,null,null,null,null,null,null,null,null,null,null,null,null,null,null,null,null,null,null,null,null,{"$f":"IF(IFERROR(SEARCH($BB$1,BB178,1),0)>0,MAX(BA$2:BA177)+1,0)","v":176},"MCPP",{"$f":"IFERROR(VLOOKUP(ROWS(BC$3:BC178),$BA$3:$BB$292,2,0),\"\")","v":"MCPP"}]
[null,null,null,null,null,null,null,null,null,null,null,null,null,null,null,null,null,null,null,null,null,null,null,null,null,null,null,null,null,null,null,null,null,null,null,null,null,null,null,null,null,null,null,null,null,null,null,null,null,null,null,null,{"$f":"IF(IFERROR(SEARCH($BB$1,BB179,1),0)>0,MAX(BA$2:BA178)+1,0)","v":177},"Mercúrio",{"$f":"IFERROR(VLOOKUP(ROWS(BC$3:BC179),$BA$3:$BB$292,2,0),\"\")","v":"Mercúrio"}]
[null,null,null,null,null,null,null,null,null,null,null,null,null,null,null,null,null,null,null,null,null,null,null,null,null,null,null,null,null,null,null,null,null,null,null,null,null,null,null,null,null,null,null,null,null,null,null,null,null,null,null,null,{"$f":"IF(IFERROR(SEARCH($BB$1,BB180,1),0)>0,MAX(BA$2:BA179)+1,0)","v":178},"Microcistina-LR total",{"$f":"IFERROR(VLOOKUP(ROWS(BC$3:BC180),$BA$3:$BB$292,2,0),\"\")","v":"Microcistina-LR total"}]
[null,null,null,null,null,null,null,null,null,null,null,null,null,null,null,null,null,null,null,null,null,null,null,null,null,null,null,null,null,null,null,null,null,null,null,null,null,null,null,null,null,null,null,null,null,null,null,null,null,null,null,null,{"$f":"IF(IFERROR(SEARCH($BB$1,BB181,1),0)>0,MAX(BA$2:BA180)+1,0)","v":179},"Microcistinas LR",{"$f":"IFERROR(VLOOKUP(ROWS(BC$3:BC181),$BA$3:$BB$292,2,0),\"\")","v":"Microcistinas LR"}]
[null,null,null,null,null,null,null,null,null,null,null,null,null,null,null,null,null,null,null,null,null,null,null,null,null,null,null,null,null,null,null,null,null,null,null,null,null,null,null,null,null,null,null,null,null,null,null,null,null,null,null,null,{"$f":"IF(IFERROR(SEARCH($BB$1,BB182,1),0)>0,MAX(BA$2:BA181)+1,0)","v":180},"Microcistinas RR",{"$f":"IFERROR(VLOOKUP(ROWS(BC$3:BC182),$BA$3:$BB$292,2,0),\"\")","v":"Microcistinas RR"}]
[null,null,null,null,null,null,null,null,null,null,null,null,null,null,null,null,null,null,null,null,null,null,null,null,null,null,null,null,null,null,null,null,null,null,null,null,null,null,null,null,null,null,null,null,null,null,null,null,null,null,null,null,{"$f":"IF(IFERROR(SEARCH($BB$1,BB183,1),0)>0,MAX(BA$2:BA182)+1,0)","v":181},"Microcistinas Totais",{"$f":"IFERROR(VLOOKUP(ROWS(BC$3:BC183),$BA$3:$BB$292,2,0),\"\")","v":"Microcistinas Totais"}]
[null,null,null,null,null,null,null,null,null,null,null,null,null,null,null,null,null,null,null,null,null,null,null,null,null,null,null,null,null,null,null,null,null,null,null,null,null,null,null,null,null,null,null,null,null,null,null,null,null,null,null,null,{"$f":"IF(IFERROR(SEARCH($BB$1,BB184,1),0)>0,MAX(BA$2:BA183)+1,0)","v":182},"Microcistinas YR",{"$f":"IFERROR(VLOOKUP(ROWS(BC$3:BC184),$BA$3:$BB$292,2,0),\"\")","v":"Microcistinas YR"}]
[null,null,null,null,null,null,null,null,null,null,null,null,null,null,null,null,null,null,null,null,null,null,null,null,null,null,null,null,null,null,null,null,null,null,null,null,null,null,null,null,null,null,null,null,null,null,null,null,null,null,null,null,{"$f":"IF(IFERROR(SEARCH($BB$1,BB185,1),0)>0,MAX(BA$2:BA184)+1,0)","v":183},"Mineralização Total",{"$f":"IFERROR(VLOOKUP(ROWS(BC$3:BC185),$BA$3:$BB$292,2,0),\"\")","v":"Mineralização Total"}]
[null,null,null,null,null,null,null,null,null,null,null,null,null,null,null,null,null,null,null,null,null,null,null,null,null,null,null,null,null,null,null,null,null,null,null,null,null,null,null,null,null,null,null,null,null,null,null,null,null,null,null,null,{"$f":"IF(IFERROR(SEARCH($BB$1,BB186,1),0)>0,MAX(BA$2:BA185)+1,0)","v":184},"Molibdénio",{"$f":"IFERROR(VLOOKUP(ROWS(BC$3:BC186),$BA$3:$BB$292,2,0),\"\")","v":"Molibdénio"}]
[null,null,null,null,null,null,null,null,null,null,null,null,null,null,null,null,null,null,null,null,null,null,null,null,null,null,null,null,null,null,null,null,null,null,null,null,null,null,null,null,null,null,null,null,null,null,null,null,null,null,null,null,{"$f":"IF(IFERROR(SEARCH($BB$1,BB187,1),0)>0,MAX(BA$2:BA186)+1,0)","v":185},"Naftaleno",{"$f":"IFERROR(VLOOKUP(ROWS(BC$3:BC187),$BA$3:$BB$292,2,0),\"\")","v":"Naftaleno"}]
[null,null,null,null,null,null,null,null,null,null,null,null,null,null,null,null,null,null,null,null,null,null,null,null,null,null,null,null,null,null,null,null,null,null,null,null,null,null,null,null,null,null,null,null,null,null,null,null,null,null,null,null,{"$f":"IF(IFERROR(SEARCH($BB$1,BB188,1),0)>0,MAX(BA$2:BA187)+1,0)","v":186},"Níquel",{"$f":"IFERROR(VLOOKUP(ROWS(BC$3:BC188),$BA$3:$BB$292,2,0),\"\")","v":"Níquel"}]
[null,null,null,null,null,null,null,null,null,null,null,null,null,null,null,null,null,null,null,null,null,null,null,null,null,null,null,null,null,null,null,null,null,null,null,null,null,null,null,null,null,null,null,null,null,null,null,null,null,null,null,null,{"$f":"IF(IFERROR(SEARCH($BB$1,BB189,1),0)>0,MAX(BA$2:BA188)+1,0)","v":187},"Níquel_PCQA_com Purga",{"$f":"IFERROR(VLOOKUP(ROWS(BC$3:BC189),$BA$3:$BB$292,2,0),\"\")","v":"Níquel_PCQA_com Purga"}]
[null,null,null,null,null,null,null,null,null,null,null,null,null,null,null,null,null,null,null,null,null,null,null,null,null,null,null,null,null,null,null,null,null,null,null,null,null,null,null,null,null,null,null,null,null,null,null,null,null,null,null,null,{"$f":"IF(IFERROR(SEARCH($BB$1,BB190,1),0)>0,MAX(BA$2:BA189)+1,0)","v":188},"Níquel_PCQA_sem Purga",{"$f":"IFERROR(VLOOKUP(ROWS(BC$3:BC190),$BA$3:$BB$292,2,0),\"\")","v":"Níquel_PCQA_sem Purga"}]
[null,null,null,null,null,null,null,null,null,null,null,null,null,null,null,null,null,null,null,null,null,null,null,null,null,null,null,null,null,null,null,null,null,null,null,null,null,null,null,null,null,null,null,null,null,null,null,null,null,null,null,null,{"$f":"IF(IFERROR(SEARCH($BB$1,BB191,1),0)>0,MAX(BA$2:BA190)+1,0)","v":189},"Nitratos",{"$f":"IFERROR(VLOOKUP(ROWS(BC$3:BC191),$BA$3:$BB$292,2,0),\"\")","v":"Nitratos"}]
[null,null,null,null,null,null,null,null,null,null,null,null,null,null,null,null,null,null,null,null,null,null,null,null,null,null,null,null,null,null,null,null,null,null,null,null,null,null,null,null,null,null,null,null,null,null,null,null,null,null,null,null,{"$f":"IF(IFERROR(SEARCH($BB$1,BB192,1),0)>0,MAX(BA$2:BA191)+1,0)","v":190},"Nitrito",{"$f":"IFERROR(VLOOKUP(ROWS(BC$3:BC192),$BA$3:$BB$292,2,0),\"\")","v":"Nitrito"}]
[null,null,null,null,null,null,null,null,null,null,null,null,null,null,null,null,null,null,null,null,null,null,null,null,null,null,null,null,null,null,null,null,null,null,null,null,null,null,null,null,null,null,null,null,null,null,null,null,null,null,null,null,{"$f":"IF(IFERROR(SEARCH($BB$1,BB193,1),0)>0,MAX(BA$2:BA192)+1,0)","v":191},"Nível Piezométrico",{"$f":"IFERROR(VLOOKUP(ROWS(BC$3:BC193),$BA$3:$BB$292,2,0),\"\")","v":"Nível Piezométrico"}]
[null,null,null,null,null,null,null,null,null,null,null,null,null,null,null,null,null,null,null,null,null,null,null,null,null,null,null,null,null,null,null,null,null,null,null,null,null,null,null,null,null,null,null,null,null,null,null,null,null,null,null,null,{"$f":"IF(IFERROR(SEARCH($BB$1,BB194,1),0)>0,MAX(BA$2:BA193)+1,0)","v":192},"Número de Colónias a 22 ºC",{"$f":"IFERROR(VLOOKUP(ROWS(BC$3:BC194),$BA$3:$BB$292,2,0),\"\")","v":"Número de Colónias a 22 ºC"}]
[null,null,null,null,null,null,null,null,null,null,null,null,null,null,null,null,null,null,null,null,null,null,null,null,null,null,null,null,null,null,null,null,null,null,null,null,null,null,null,null,null,null,null,null,null,null,null,null,null,null,null,null,{"$f":"IF(IFERROR(SEARCH($BB$1,BB195,1),0)>0,MAX(BA$2:BA194)+1,0)","v":193},"Número de Colónias a 36 ºC",{"$f":"IFERROR(VLOOKUP(ROWS(BC$3:BC195),$BA$3:$BB$292,2,0),\"\")","v":"Número de Colónias a 36 ºC"}]
[null,null,null,null,null,null,null,null,null,null,null,null,null,null,null,null,null,null,null,null,null,null,null,null,null,null,null,null,null,null,null,null,null,null,null,null,null,null,null,null,null,null,null,null,null,null,null,null,null,null,null,null,{"$f":"IF(IFERROR(SEARCH($BB$1,BB196,1),0)>0,MAX(BA$2:BA195)+1,0)","v":194},"Óleos e Gorduras",{"$f":"IFERROR(VLOOKUP(ROWS(BC$3:BC196),$BA$3:$BB$292,2,0),\"\")","v":"Óleos e Gorduras"}]
[null,null,null,null,null,null,null,null,null,null,null,null,null,null,null,null,null,null,null,null,null,null,null,null,null,null,null,null,null,null,null,null,null,null,null,null,null,null,null,null,null,null,null,null,null,null,null,null,null,null,null,null,{"$f":"IF(IFERROR(SEARCH($BB$1,BB197,1),0)>0,MAX(BA$2:BA196)+1,0)","v":195},"Óleos e Gorduras [Amostragem Pontual]",{"$f":"IFERROR(VLOOKUP(ROWS(BC$3:BC197),$BA$3:$BB$292,2,0),\"\")","v":"Óleos e Gorduras [Amostragem Pontual]"}]
[null,null,null,null,null,null,null,null,null,null,null,null,null,null,null,null,null,null,null,null,null,null,null,null,null,null,null,null,null,null,null,null,null,null,null,null,null,null,null,null,null,null,null,null,null,null,null,null,null,null,null,null,{"$f":"IF(IFERROR(SEARCH($BB$1,BB198,1),0)>0,MAX(BA$2:BA197)+1,0)","v":196},"Óleos Minerais",{"$f":"IFERROR(VLOOKUP(ROWS(BC$3:BC198),$BA$3:$BB$292,2,0),\"\")","v":"Óleos Minerais"}]
[null,null,null,null,null,null,null,null,null,null,null,null,null,null,null,null,null,null,null,null,null,null,null,null,null,null,null,null,null,null,null,null,null,null,null,null,null,null,null,null,null,null,null,null,null,null,null,null,null,null,null,null,{"$f":"IF(IFERROR(SEARCH($BB$1,BB199,1),0)>0,MAX(BA$2:BA198)+1,0)","v":197},"Ometoato",{"$f":"IFERROR(VLOOKUP(ROWS(BC$3:BC199),$BA$3:$BB$292,2,0),\"\")","v":"Ometoato"}]
[null,null,null,null,null,null,null,null,null,null,null,null,null,null,null,null,null,null,null,null,null,null,null,null,null,null,null,null,null,null,null,null,null,null,null,null,null,null,null,null,null,null,null,null,null,null,null,null,null,null,null,null,{"$f":"IF(IFERROR(SEARCH($BB$1,BB200,1),0)>0,MAX(BA$2:BA199)+1,0)","v":198},"Ovos de Parasitas Intestinais",{"$f":"IFERROR(VLOOKUP(ROWS(BC$3:BC200),$BA$3:$BB$292,2,0),\"\")","v":"Ovos de Parasitas Intestinais"}]
[null,null,null,null,null,null,null,null,null,null,null,null,null,null,null,null,null,null,null,null,null,null,null,null,null,null,null,null,null,null,null,null,null,null,null,null,null,null,null,null,null,null,null,null,null,null,null,null,null,null,null,null,{"$f":"IF(IFERROR(SEARCH($BB$1,BB201,1),0)>0,MAX(BA$2:BA200)+1,0)","v":199},"Oxamil",{"$f":"IFERROR(VLOOKUP(ROWS(BC$3:BC201),$BA$3:$BB$292,2,0),\"\")","v":"Oxamil"}]
[null,null,null,null,null,null,null,null,null,null,null,null,null,null,null,null,null,null,null,null,null,null,null,null,null,null,null,null,null,null,null,null,null,null,null,null,null,null,null,null,null,null,null,null,null,null,null,null,null,null,null,null,{"$f":"IF(IFERROR(SEARCH($BB$1,BB202,1),0)>0,MAX(BA$2:BA201)+1,0)","v":200},"Oxidabilidade",{"$f":"IFERROR(VLOOKUP(ROWS(BC$3:BC202),$BA$3:$BB$292,2,0),\"\")","v":"Oxidabilidade"}]
[null,null,null,null,null,null,null,null,null,null,null,null,null,null,null,null,null,null,null,null,null,null,null,null,null,null,null,null,null,null,null,null,null,null,null,null,null,null,null,null,null,null,null,null,null,null,null,null,null,null,null,null,{"$f":"IF(IFERROR(SEARCH($BB$1,BB203,1),0)>0,MAX(BA$2:BA202)+1,0)","v":201},"Oxigénio dissolvido (%)",{"$f":"IFERROR(VLOOKUP(ROWS(BC$3:BC203),$BA$3:$BB$292,2,0),\"\")","v":"Oxigénio dissolvido (%)"}]
[null,null,null,null,null,null,null,null,null,null,null,null,null,null,null,null,null,null,null,null,null,null,null,null,null,null,null,null,null,null,null,null,null,null,null,null,null,null,null,null,null,null,null,null,null,null,null,null,null,null,null,null,{"$f":"IF(IFERROR(SEARCH($BB$1,BB204,1),0)>0,MAX(BA$2:BA203)+1,0)","v":202},"Oxigénio dissolvido (%) [Amostra pontual]",{"$f":"IFERROR(VLOOKUP(ROWS(BC$3:BC204),$BA$3:$BB$292,2,0),\"\")","v":"Oxigénio dissolvido (%) [Amostra pontual]"}]
[null,null,null,null,null,null,null,null,null,null,null,null,null,null,null,null,null,null,null,null,null,null,null,null,null,null,null,null,null,null,null,null,null,null,null,null,null,null,null,null,null,null,null,null,null,null,null,null,null,null,null,null,{"$f":"IF(IFERROR(SEARCH($BB$1,BB205,1),0)>0,MAX(BA$2:BA204)+1,0)","v":203},"Oxigénio dissolvido (mg/L)",{"$f":"IFERROR(VLOOKUP(ROWS(BC$3:BC205),$BA$3:$BB$292,2,0),\"\")","v":"Oxigénio dissolvido (mg/L)"}]
[null,null,null,null,null,null,null,null,null,null,null,null,null,null,null,null,null,null,null,null,null,null,null,null,null,null,null,null,null,null,null,null,null,null,null,null,null,null,null,null,null,null,null,null,null,null,null,null,null,null,null,null,{"$f":"IF(IFERROR(SEARCH($BB$1,BB206,1),0)>0,MAX(BA$2:BA205)+1,0)","v":204},"Oxigénio dissolvido (mg/L) [Amostra pontual]",{"$f":"IFERROR(VLOOKUP(ROWS(BC$3:BC206),$BA$3:$BB$292,2,0),\"\")","v":"Oxigénio dissolvido (mg/L) [Amostra pontual]"}]
[null,null,null,null,null,null,null,null,null,null,null,null,null,null,null,null,null,null,null,null,null,null,null,null,null,null,null,null,null,null,null,null,null,null,null,null,null,null,null,null,null,null,null,null,null,null,null,null,null,null,null,null,{"$f":"IF(IFERROR(SEARCH($BB$1,BB207,1),0)>0,MAX(BA$2:BA206)+1,0)","v":205},"o-xileno",{"$f":"IFERROR(VLOOKUP(ROWS(BC$3:BC207),$BA$3:$BB$292,2,0),\"\")","v":"o-xileno"}]
[null,null,null,null,null,null,null,null,null,null,null,null,null,null,null,null,null,null,null,null,null,null,null,null,null,null,null,null,null,null,null,null,null,null,null,null,null,null,null,null,null,null,null,null,null,null,null,null,null,null,null,null,{"$f":"IF(IFERROR(SEARCH($BB$1,BB208,1),0)>0,MAX(BA$2:BA207)+1,0)","v":206},"p+m-Xileno",{"$f":"IFERROR(VLOOKUP(ROWS(BC$3:BC208),$BA$3:$BB$292,2,0),\"\")","v":"p+m-Xileno"}]
[null,null,null,null,null,null,null,null,null,null,null,null,null,null,null,null,null,null,null,null,null,null,null,null,null,null,null,null,null,null,null,null,null,null,null,null,null,null,null,null,null,null,null,null,null,null,null,null,null,null,null,null,{"$f":"IF(IFERROR(SEARCH($BB$1,BB209,1),0)>0,MAX(BA$2:BA208)+1,0)","v":207},"Paraquato",{"$f":"IFERROR(VLOOKUP(ROWS(BC$3:BC209),$BA$3:$BB$292,2,0),\"\")","v":"Paraquato"}]
[null,null,null,null,null,null,null,null,null,null,null,null,null,null,null,null,null,null,null,null,null,null,null,null,null,null,null,null,null,null,null,null,null,null,null,null,null,null,null,null,null,null,null,null,null,null,null,null,null,null,null,null,{"$f":"IF(IFERROR(SEARCH($BB$1,BB210,1),0)>0,MAX(BA$2:BA209)+1,0)","v":208},"Paratião-etil",{"$f":"IFERROR(VLOOKUP(ROWS(BC$3:BC210),$BA$3:$BB$292,2,0),\"\")","v":"Paratião-etil"}]
[null,null,null,null,null,null,null,null,null,null,null,null,null,null,null,null,null,null,null,null,null,null,null,null,null,null,null,null,null,null,null,null,null,null,null,null,null,null,null,null,null,null,null,null,null,null,null,null,null,null,null,null,{"$f":"IF(IFERROR(SEARCH($BB$1,BB211,1),0)>0,MAX(BA$2:BA210)+1,0)","v":209},"Paratião-metil",{"$f":"IFERROR(VLOOKUP(ROWS(BC$3:BC211),$BA$3:$BB$292,2,0),\"\")","v":"Paratião-metil"}]
[null,null,null,null,null,null,null,null,null,null,null,null,null,null,null,null,null,null,null,null,null,null,null,null,null,null,null,null,null,null,null,null,null,null,null,null,null,null,null,null,null,null,null,null,null,null,null,null,null,null,null,null,{"$f":"IF(IFERROR(SEARCH($BB$1,BB212,1),0)>0,MAX(BA$2:BA211)+1,0)","v":210},"PCB 101",{"$f":"IFERROR(VLOOKUP(ROWS(BC$3:BC212),$BA$3:$BB$292,2,0),\"\")","v":"PCB 101"}]
[null,null,null,null,null,null,null,null,null,null,null,null,null,null,null,null,null,null,null,null,null,null,null,null,null,null,null,null,null,null,null,null,null,null,null,null,null,null,null,null,null,null,null,null,null,null,null,null,null,null,null,null,{"$f":"IF(IFERROR(SEARCH($BB$1,BB213,1),0)>0,MAX(BA$2:BA212)+1,0)","v":211},"PCB 118",{"$f":"IFERROR(VLOOKUP(ROWS(BC$3:BC213),$BA$3:$BB$292,2,0),\"\")","v":"PCB 118"}]
[null,null,null,null,null,null,null,null,null,null,null,null,null,null,null,null,null,null,null,null,null,null,null,null,null,null,null,null,null,null,null,null,null,null,null,null,null,null,null,null,null,null,null,null,null,null,null,null,null,null,null,null,{"$f":"IF(IFERROR(SEARCH($BB$1,BB214,1),0)>0,MAX(BA$2:BA213)+1,0)","v":212},"PCB 138",{"$f":"IFERROR(VLOOKUP(ROWS(BC$3:BC214),$BA$3:$BB$292,2,0),\"\")","v":"PCB 138"}]
[null,null,null,null,null,null,null,null,null,null,null,null,null,null,null,null,null,null,null,null,null,null,null,null,null,null,null,null,null,null,null,null,null,null,null,null,null,null,null,null,null,null,null,null,null,null,null,null,null,null,null,null,{"$f":"IF(IFERROR(SEARCH($BB$1,BB215,1),0)>0,MAX(BA$2:BA214)+1,0)","v":213},"PCB 153",{"$f":"IFERROR(VLOOKUP(ROWS(BC$3:BC215),$BA$3:$BB$292,2,0),\"\")","v":"PCB 153"}]
[null,null,null,null,null,null,null,null,null,null,null,null,null,null,null,null,null,null,null,null,null,null,null,null,null,null,null,null,null,null,null,null,null,null,null,null,null,null,null,null,null,null,null,null,null,null,null,null,null,null,null,null,{"$f":"IF(IFERROR(SEARCH($BB$1,BB216,1),0)>0,MAX(BA$2:BA215)+1,0)","v":214},"PCB 180",{"$f":"IFERROR(VLOOKUP(ROWS(BC$3:BC216),$BA$3:$BB$292,2,0),\"\")","v":"PCB 180"}]
[null,null,null,null,null,null,null,null,null,null,null,null,null,null,null,null,null,null,null,null,null,null,null,null,null,null,null,null,null,null,null,null,null,null,null,null,null,null,null,null,null,null,null,null,null,null,null,null,null,null,null,null,{"$f":"IF(IFERROR(SEARCH($BB$1,BB217,1),0)>0,MAX(BA$2:BA216)+1,0)","v":215},"PCB 28",{"$f":"IFERROR(VLOOKUP(ROWS(BC$3:BC217),$BA$3:$BB$292,2,0),\"\")","v":"PCB 28"}]
[null,null,null,null,null,null,null,null,null,null,null,null,null,null,null,null,null,null,null,null,null,null,null,null,null,null,null,null,null,null,null,null,null,null,null,null,null,null,null,null,null,null,null,null,null,null,null,null,null,null,null,null,{"$f":"IF(IFERROR(SEARCH($BB$1,BB218,1),0)>0,MAX(BA$2:BA217)+1,0)","v":216},"PCB 52",{"$f":"IFERROR(VLOOKUP(ROWS(BC$3:BC218),$BA$3:$BB$292,2,0),\"\")","v":"PCB 52"}]
[null,null,null,null,null,null,null,null,null,null,null,null,null,null,null,null,null,null,null,null,null,null,null,null,null,null,null,null,null,null,null,null,null,null,null,null,null,null,null,null,null,null,null,null,null,null,null,null,null,null,null,null,{"$f":"IF(IFERROR(SEARCH($BB$1,BB219,1),0)>0,MAX(BA$2:BA218)+1,0)","v":217},"Pesquisa de Ovos de Parasitas Intestinais",{"$f":"IFERROR(VLOOKUP(ROWS(BC$3:BC219),$BA$3:$BB$292,2,0),\"\")","v":"Pesquisa de Ovos de Parasitas Intestinais"}]
[null,null,null,null,null,null,null,null,null,null,null,null,null,null,null,null,null,null,null,null,null,null,null,null,null,null,null,null,null,null,null,null,null,null,null,null,null,null,null,null,null,null,null,null,null,null,null,null,null,null,null,null,{"$f":"IF(IFERROR(SEARCH($BB$1,BB220,1),0)>0,MAX(BA$2:BA219)+1,0)","v":218},"Pesticidas Totais",{"$f":"IFERROR(VLOOKUP(ROWS(BC$3:BC220),$BA$3:$BB$292,2,0),\"\")","v":"Pesticidas Totais"}]
[null,null,null,null,null,null,null,null,null,null,null,null,null,null,null,null,null,null,null,null,null,null,null,null,null,null,null,null,null,null,null,null,null,null,null,null,null,null,null,null,null,null,null,null,null,null,null,null,null,null,null,null,{"$f":"IF(IFERROR(SEARCH($BB$1,BB221,1),0)>0,MAX(BA$2:BA220)+1,0)","v":219},"pH",{"$f":"IFERROR(VLOOKUP(ROWS(BC$3:BC221),$BA$3:$BB$292,2,0),\"\")","v":"pH"}]
[null,null,null,null,null,null,null,null,null,null,null,null,null,null,null,null,null,null,null,null,null,null,null,null,null,null,null,null,null,null,null,null,null,null,null,null,null,null,null,null,null,null,null,null,null,null,null,null,null,null,null,null,{"$f":"IF(IFERROR(SEARCH($BB$1,BB222,1),0)>0,MAX(BA$2:BA221)+1,0)","v":220},"pH [Amostragem Pontual]",{"$f":"IFERROR(VLOOKUP(ROWS(BC$3:BC222),$BA$3:$BB$292,2,0),\"\")","v":"pH [Amostragem Pontual]"}]
[null,null,null,null,null,null,null,null,null,null,null,null,null,null,null,null,null,null,null,null,null,null,null,null,null,null,null,null,null,null,null,null,null,null,null,null,null,null,null,null,null,null,null,null,null,null,null,null,null,null,null,null,{"$f":"IF(IFERROR(SEARCH($BB$1,BB223,1),0)>0,MAX(BA$2:BA222)+1,0)","v":221},"Pireno",{"$f":"IFERROR(VLOOKUP(ROWS(BC$3:BC223),$BA$3:$BB$292,2,0),\"\")","v":"Pireno"}]
[null,null,null,null,null,null,null,null,null,null,null,null,null,null,null,null,null,null,null,null,null,null,null,null,null,null,null,null,null,null,null,null,null,null,null,null,null,null,null,null,null,null,null,null,null,null,null,null,null,null,null,null,{"$f":"IF(IFERROR(SEARCH($BB$1,BB224,1),0)>0,MAX(BA$2:BA223)+1,0)","v":222},"Pirimetanil",{"$f":"IFERROR(VLOOKUP(ROWS(BC$3:BC224),$BA$3:$BB$292,2,0),\"\")","v":"Pirimetanil"}]
[null,null,null,null,null,null,null,null,null,null,null,null,null,null,null,null,null,null,null,null,null,null,null,null,null,null,null,null,null,null,null,null,null,null,null,null,null,null,null,null,null,null,null,null,null,null,null,null,null,null,null,null,{"$f":"IF(IFERROR(SEARCH($BB$1,BB225,1),0)>0,MAX(BA$2:BA224)+1,0)","v":223},"Poder Calorífico Inferior (PCI)",{"$f":"IFERROR(VLOOKUP(ROWS(BC$3:BC225),$BA$3:$BB$292,2,0),\"\")","v":"Poder Calorífico Inferior (PCI)"}]
[null,null,null,null,null,null,null,null,null,null,null,null,null,null,null,null,null,null,null,null,null,null,null,null,null,null,null,null,null,null,null,null,null,null,null,null,null,null,null,null,null,null,null,null,null,null,null,null,null,null,null,null,{"$f":"IF(IFERROR(SEARCH($BB$1,BB226,1),0)>0,MAX(BA$2:BA225)+1,0)","v":224},"Polifenóis",{"$f":"IFERROR(VLOOKUP(ROWS(BC$3:BC226),$BA$3:$BB$292,2,0),\"\")","v":"Polifenóis"}]
[null,null,null,null,null,null,null,null,null,null,null,null,null,null,null,null,null,null,null,null,null,null,null,null,null,null,null,null,null,null,null,null,null,null,null,null,null,null,null,null,null,null,null,null,null,null,null,null,null,null,null,null,{"$f":"IF(IFERROR(SEARCH($BB$1,BB227,1),0)>0,MAX(BA$2:BA226)+1,0)","v":225},"Polónio 210",{"$f":"IFERROR(VLOOKUP(ROWS(BC$3:BC227),$BA$3:$BB$292,2,0),\"\")","v":"Polónio 210"}]
[null,null,null,null,null,null,null,null,null,null,null,null,null,null,null,null,null,null,null,null,null,null,null,null,null,null,null,null,null,null,null,null,null,null,null,null,null,null,null,null,null,null,null,null,null,null,null,null,null,null,null,null,{"$f":"IF(IFERROR(SEARCH($BB$1,BB228,1),0)>0,MAX(BA$2:BA227)+1,0)","v":226},"Potássio",{"$f":"IFERROR(VLOOKUP(ROWS(BC$3:BC228),$BA$3:$BB$292,2,0),\"\")","v":"Potássio"}]
[null,null,null,null,null,null,null,null,null,null,null,null,null,null,null,null,null,null,null,null,null,null,null,null,null,null,null,null,null,null,null,null,null,null,null,null,null,null,null,null,null,null,null,null,null,null,null,null,null,null,null,null,{"$f":"IF(IFERROR(SEARCH($BB$1,BB229,1),0)>0,MAX(BA$2:BA228)+1,0)","v":227},"Potencial Redox",{"$f":"IFERROR(VLOOKUP(ROWS(BC$3:BC229),$BA$3:$BB$292,2,0),\"\")","v":"Potencial Redox"}]
[null,null,null,null,null,null,null,null,null,null,null,null,null,null,null,null,null,null,null,null,null,null,null,null,null,null,null,null,null,null,null,null,null,null,null,null,null,null,null,null,null,null,null,null,null,null,null,null,null,null,null,null,{"$f":"IF(IFERROR(SEARCH($BB$1,BB230,1),0)>0,MAX(BA$2:BA229)+1,0)","v":228},"Prata",{"$f":"IFERROR(VLOOKUP(ROWS(BC$3:BC230),$BA$3:$BB$292,2,0),\"\")","v":"Prata"}]
[null,null,null,null,null,null,null,null,null,null,null,null,null,null,null,null,null,null,null,null,null,null,null,null,null,null,null,null,null,null,null,null,null,null,null,null,null,null,null,null,null,null,null,null,null,null,null,null,null,null,null,null,{"$f":"IF(IFERROR(SEARCH($BB$1,BB231,1),0)>0,MAX(BA$2:BA230)+1,0)","v":229},"Profundidade da Captação",{"$f":"IFERROR(VLOOKUP(ROWS(BC$3:BC231),$BA$3:$BB$292,2,0),\"\")","v":"Profundidade da Captação"}]
[null,null,null,null,null,null,null,null,null,null,null,null,null,null,null,null,null,null,null,null,null,null,null,null,null,null,null,null,null,null,null,null,null,null,null,null,null,null,null,null,null,null,null,null,null,null,null,null,null,null,null,null,{"$f":"IF(IFERROR(SEARCH($BB$1,BB232,1),0)>0,MAX(BA$2:BA231)+1,0)","v":230},"Profundidade de Secchi",{"$f":"IFERROR(VLOOKUP(ROWS(BC$3:BC232),$BA$3:$BB$292,2,0),\"\")","v":"Profundidade de Secchi"}]
[null,null,null,null,null,null,null,null,null,null,null,null,null,null,null,null,null,null,null,null,null,null,null,null,null,null,null,null,null,null,null,null,null,null,null,null,null,null,null,null,null,null,null,null,null,null,null,null,null,null,null,null,{"$f":"IF(IFERROR(SEARCH($BB$1,BB233,1),0)>0,MAX(BA$2:BA232)+1,0)","v":231},"Propilenotiureia",{"$f":"IFERROR(VLOOKUP(ROWS(BC$3:BC233),$BA$3:$BB$292,2,0),\"\")","v":"Propilenotiureia"}]
[null,null,null,null,null,null,null,null,null,null,null,null,null,null,null,null,null,null,null,null,null,null,null,null,null,null,null,null,null,null,null,null,null,null,null,null,null,null,null,null,null,null,null,null,null,null,null,null,null,null,null,null,{"$f":"IF(IFERROR(SEARCH($BB$1,BB234,1),0)>0,MAX(BA$2:BA233)+1,0)","v":232},"Pseudomonas aeruginosa",{"$f":"IFERROR(VLOOKUP(ROWS(BC$3:BC234),$BA$3:$BB$292,2,0),\"\")","v":"Pseudomonas aeruginosa"}]
[null,null,null,null,null,null,null,null,null,null,null,null,null,null,null,null,null,null,null,null,null,null,null,null,null,null,null,null,null,null,null,null,null,null,null,null,null,null,null,null,null,null,null,null,null,null,null,null,null,null,null,null,{"$f":"IF(IFERROR(SEARCH($BB$1,BB235,1),0)>0,MAX(BA$2:BA234)+1,0)","v":233},"p-xileno",{"$f":"IFERROR(VLOOKUP(ROWS(BC$3:BC235),$BA$3:$BB$292,2,0),\"\")","v":"p-xileno"}]
[null,null,null,null,null,null,null,null,null,null,null,null,null,null,null,null,null,null,null,null,null,null,null,null,null,null,null,null,null,null,null,null,null,null,null,null,null,null,null,null,null,null,null,null,null,null,null,null,null,null,null,null,{"$f":"IF(IFERROR(SEARCH($BB$1,BB236,1),0)>0,MAX(BA$2:BA235)+1,0)","v":234},"Radão",{"$f":"IFERROR(VLOOKUP(ROWS(BC$3:BC236),$BA$3:$BB$292,2,0),\"\")","v":"Radão"}]
[null,null,null,null,null,null,null,null,null,null,null,null,null,null,null,null,null,null,null,null,null,null,null,null,null,null,null,null,null,null,null,null,null,null,null,null,null,null,null,null,null,null,null,null,null,null,null,null,null,null,null,null,{"$f":"IF(IFERROR(SEARCH($BB$1,BB237,1),0)>0,MAX(BA$2:BA236)+1,0)","v":235},"Rádio 226",{"$f":"IFERROR(VLOOKUP(ROWS(BC$3:BC237),$BA$3:$BB$292,2,0),\"\")","v":"Rádio 226"}]
[null,null,null,null,null,null,null,null,null,null,null,null,null,null,null,null,null,null,null,null,null,null,null,null,null,null,null,null,null,null,null,null,null,null,null,null,null,null,null,null,null,null,null,null,null,null,null,null,null,null,null,null,{"$f":"IF(IFERROR(SEARCH($BB$1,BB238,1),0)>0,MAX(BA$2:BA237)+1,0)","v":236},"Rádio 228",{"$f":"IFERROR(VLOOKUP(ROWS(BC$3:BC238),$BA$3:$BB$292,2,0),\"\")","v":"Rádio 228"}]
[null,null,null,null,null,null,null,null,null,null,null,null,null,null,null,null,null,null,null,null,null,null,null,null,null,null,null,null,null,null,null,null,null,null,null,null,null,null,null,null,null,null,null,null,null,null,null,null,null,null,null,null,{"$f":"IF(IFERROR(SEARCH($BB$1,BB239,1),0)>0,MAX(BA$2:BA238)+1,0)","v":237},"Resistividade",{"$f":"IFERROR(VLOOKUP(ROWS(BC$3:BC239),$BA$3:$BB$292,2,0),\"\")","v":"Resistividade"}]
[null,null,null,null,null,null,null,null,null,null,null,null,null,null,null,null,null,null,null,null,null,null,null,null,null,null,null,null,null,null,null,null,null,null,null,null,null,null,null,null,null,null,null,null,null,null,null,null,null,null,null,null,{"$f":"IF(IFERROR(SEARCH($BB$1,BB240,1),0)>0,MAX(BA$2:BA239)+1,0)","v":238},"S.A.R Ajustado",{"$f":"IFERROR(VLOOKUP(ROWS(BC$3:BC240),$BA$3:$BB$292,2,0),\"\")","v":"S.A.R Ajustado"}]
[null,null,null,null,null,null,null,null,null,null,null,null,null,null,null,null,null,null,null,null,null,null,null,null,null,null,null,null,null,null,null,null,null,null,null,null,null,null,null,null,null,null,null,null,null,null,null,null,null,null,null,null,{"$f":"IF(IFERROR(SEARCH($BB$1,BB241,1),0)>0,MAX(BA$2:BA240)+1,0)","v":239},"S.A.R.",{"$f":"IFERROR(VLOOKUP(ROWS(BC$3:BC241),$BA$3:$BB$292,2,0),\"\")","v":"S.A.R."}]
[null,null,null,null,null,null,null,null,null,null,null,null,null,null,null,null,null,null,null,null,null,null,null,null,null,null,null,null,null,null,null,null,null,null,null,null,null,null,null,null,null,null,null,null,null,null,null,null,null,null,null,null,{"$f":"IF(IFERROR(SEARCH($BB$1,BB242,1),0)>0,MAX(BA$2:BA241)+1,0)","v":240},"Sabor, a 25ºC",{"$f":"IFERROR(VLOOKUP(ROWS(BC$3:BC242),$BA$3:$BB$292,2,0),\"\")","v":"Sabor, a 25ºC"}]
[null,null,null,null,null,null,null,null,null,null,null,null,null,null,null,null,null,null,null,null,null,null,null,null,null,null,null,null,null,null,null,null,null,null,null,null,null,null,null,null,null,null,null,null,null,null,null,null,null,null,null,null,{"$f":"IF(IFERROR(SEARCH($BB$1,BB243,1),0)>0,MAX(BA$2:BA242)+1,0)","v":241},"Salinidade",{"$f":"IFERROR(VLOOKUP(ROWS(BC$3:BC243),$BA$3:$BB$292,2,0),\"\")","v":"Salinidade"}]
[null,null,null,null,null,null,null,null,null,null,null,null,null,null,null,null,null,null,null,null,null,null,null,null,null,null,null,null,null,null,null,null,null,null,null,null,null,null,null,null,null,null,null,null,null,null,null,null,null,null,null,null,{"$f":"IF(IFERROR(SEARCH($BB$1,BB244,1),0)>0,MAX(BA$2:BA243)+1,0)","v":242},"Salinidade (CE)",{"$f":"IFERROR(VLOOKUP(ROWS(BC$3:BC244),$BA$3:$BB$292,2,0),\"\")","v":"Salinidade (CE)"}]
[null,null,null,null,null,null,null,null,null,null,null,null,null,null,null,null,null,null,null,null,null,null,null,null,null,null,null,null,null,null,null,null,null,null,null,null,null,null,null,null,null,null,null,null,null,null,null,null,null,null,null,null,{"$f":"IF(IFERROR(SEARCH($BB$1,BB245,1),0)>0,MAX(BA$2:BA244)+1,0)","v":243},"Salmonela (5000 mL)",{"$f":"IFERROR(VLOOKUP(ROWS(BC$3:BC245),$BA$3:$BB$292,2,0),\"\")","v":"Salmonela (5000 mL)"}]
[null,null,null,null,null,null,null,null,null,null,null,null,null,null,null,null,null,null,null,null,null,null,null,null,null,null,null,null,null,null,null,null,null,null,null,null,null,null,null,null,null,null,null,null,null,null,null,null,null,null,null,null,{"$f":"IF(IFERROR(SEARCH($BB$1,BB246,1),0)>0,MAX(BA$2:BA245)+1,0)","v":244},"Salmonella (1000 mL)",{"$f":"IFERROR(VLOOKUP(ROWS(BC$3:BC246),$BA$3:$BB$292,2,0),\"\")","v":"Salmonella (1000 mL)"}]
[null,null,null,null,null,null,null,null,null,null,null,null,null,null,null,null,null,null,null,null,null,null,null,null,null,null,null,null,null,null,null,null,null,null,null,null,null,null,null,null,null,null,null,null,null,null,null,null,null,null,null,null,{"$f":"IF(IFERROR(SEARCH($BB$1,BB247,1),0)>0,MAX(BA$2:BA246)+1,0)","v":245},"Salmonella_Lamas",{"$f":"IFERROR(VLOOKUP(ROWS(BC$3:BC247),$BA$3:$BB$292,2,0),\"\")","v":"Salmonella_Lamas"}]
[null,null,null,null,null,null,null,null,null,null,null,null,null,null,null,null,null,null,null,null,null,null,null,null,null,null,null,null,null,null,null,null,null,null,null,null,null,null,null,null,null,null,null,null,null,null,null,null,null,null,null,null,{"$f":"IF(IFERROR(SEARCH($BB$1,BB248,1),0)>0,MAX(BA$2:BA247)+1,0)","v":246},"Selénio",{"$f":"IFERROR(VLOOKUP(ROWS(BC$3:BC248),$BA$3:$BB$292,2,0),\"\")","v":"Selénio"}]
[null,null,null,null,null,null,null,null,null,null,null,null,null,null,null,null,null,null,null,null,null,null,null,null,null,null,null,null,null,null,null,null,null,null,null,null,null,null,null,null,null,null,null,null,null,null,null,null,null,null,null,null,{"$f":"IF(IFERROR(SEARCH($BB$1,BB249,1),0)>0,MAX(BA$2:BA248)+1,0)","v":247},"Sílica",{"$f":"IFERROR(VLOOKUP(ROWS(BC$3:BC249),$BA$3:$BB$292,2,0),\"\")","v":"Sílica"}]
[null,null,null,null,null,null,null,null,null,null,null,null,null,null,null,null,null,null,null,null,null,null,null,null,null,null,null,null,null,null,null,null,null,null,null,null,null,null,null,null,null,null,null,null,null,null,null,null,null,null,null,null,{"$f":"IF(IFERROR(SEARCH($BB$1,BB250,1),0)>0,MAX(BA$2:BA249)+1,0)","v":248},"Simazina",{"$f":"IFERROR(VLOOKUP(ROWS(BC$3:BC250),$BA$3:$BB$292,2,0),\"\")","v":"Simazina"}]
[null,null,null,null,null,null,null,null,null,null,null,null,null,null,null,null,null,null,null,null,null,null,null,null,null,null,null,null,null,null,null,null,null,null,null,null,null,null,null,null,null,null,null,null,null,null,null,null,null,null,null,null,{"$f":"IF(IFERROR(SEARCH($BB$1,BB251,1),0)>0,MAX(BA$2:BA250)+1,0)","v":249},"S-Metolacloro",{"$f":"IFERROR(VLOOKUP(ROWS(BC$3:BC251),$BA$3:$BB$292,2,0),\"\")","v":"S-Metolacloro"}]
[null,null,null,null,null,null,null,null,null,null,null,null,null,null,null,null,null,null,null,null,null,null,null,null,null,null,null,null,null,null,null,null,null,null,null,null,null,null,null,null,null,null,null,null,null,null,null,null,null,null,null,null,{"$f":"IF(IFERROR(SEARCH($BB$1,BB252,1),0)>0,MAX(BA$2:BA251)+1,0)","v":250},"Sódio",{"$f":"IFERROR(VLOOKUP(ROWS(BC$3:BC252),$BA$3:$BB$292,2,0),\"\")","v":"Sódio"}]
[null,null,null,null,null,null,null,null,null,null,null,null,null,null,null,null,null,null,null,null,null,null,null,null,null,null,null,null,null,null,null,null,null,null,null,null,null,null,null,null,null,null,null,null,null,null,null,null,null,null,null,null,{"$f":"IF(IFERROR(SEARCH($BB$1,BB253,1),0)>0,MAX(BA$2:BA252)+1,0)","v":251},"Sólidos Dissolvidos Totais",{"$f":"IFERROR(VLOOKUP(ROWS(BC$3:BC253),$BA$3:$BB$292,2,0),\"\")","v":"Sólidos Dissolvidos Totais"}]
[null,null,null,null,null,null,null,null,null,null,null,null,null,null,null,null,null,null,null,null,null,null,null,null,null,null,null,null,null,null,null,null,null,null,null,null,null,null,null,null,null,null,null,null,null,null,null,null,null,null,null,null,{"$f":"IF(IFERROR(SEARCH($BB$1,BB254,1),0)>0,MAX(BA$2:BA253)+1,0)","v":252},"Sólidos Suspensos Totais",{"$f":"IFERROR(VLOOKUP(ROWS(BC$3:BC254),$BA$3:$BB$292,2,0),\"\")","v":"Sólidos Suspensos Totais"}]
[null,null,null,null,null,null,null,null,null,null,null,null,null,null,null,null,null,null,null,null,null,null,null,null,null,null,null,null,null,null,null,null,null,null,null,null,null,null,null,null,null,null,null,null,null,null,null,null,null,null,null,null,{"$f":"IF(IFERROR(SEARCH($BB$1,BB255,1),0)>0,MAX(BA$2:BA254)+1,0)","v":253},"Sólidos Suspensos Voláteis",{"$f":"IFERROR(VLOOKUP(ROWS(BC$3:BC255),$BA$3:$BB$292,2,0),\"\")","v":"Sólidos Suspensos Voláteis"}]
[null,null,null,null,null,null,null,null,null,null,null,null,null,null,null,null,null,null,null,null,null,null,null,null,null,null,null,null,null,null,null,null,null,null,null,null,null,null,null,null,null,null,null,null,null,null,null,null,null,null,null,null,{"$f":"IF(IFERROR(SEARCH($BB$1,BB256,1),0)>0,MAX(BA$2:BA255)+1,0)","v":254},"Sólidos Totais",{"$f":"IFERROR(VLOOKUP(ROWS(BC$3:BC256),$BA$3:$BB$292,2,0),\"\")","v":"Sólidos Totais"}]
[null,null,null,null,null,null,null,null,null,null,null,null,null,null,null,null,null,null,null,null,null,null,null,null,null,null,null,null,null,null,null,null,null,null,null,null,null,null,null,null,null,null,null,null,null,null,null,null,null,null,null,null,{"$f":"IF(IFERROR(SEARCH($BB$1,BB257,1),0)>0,MAX(BA$2:BA256)+1,0)","v":255},"SST",{"$f":"IFERROR(VLOOKUP(ROWS(BC$3:BC257),$BA$3:$BB$292,2,0),\"\")","v":"SST"}]
[null,null,null,null,null,null,null,null,null,null,null,null,null,null,null,null,null,null,null,null,null,null,null,null,null,null,null,null,null,null,null,null,null,null,null,null,null,null,null,null,null,null,null,null,null,null,null,null,null,null,null,null,{"$f":"IF(IFERROR(SEARCH($BB$1,BB258,1),0)>0,MAX(BA$2:BA257)+1,0)","v":256},"ß-Total",{"$f":"IFERROR(VLOOKUP(ROWS(BC$3:BC258),$BA$3:$BB$292,2,0),\"\")","v":"ß-Total"}]
[null,null,null,null,null,null,null,null,null,null,null,null,null,null,null,null,null,null,null,null,null,null,null,null,null,null,null,null,null,null,null,null,null,null,null,null,null,null,null,null,null,null,null,null,null,null,null,null,null,null,null,null,{"$f":"IF(IFERROR(SEARCH($BB$1,BB259,1),0)>0,MAX(BA$2:BA258)+1,0)","v":257},"ß-Total-40K",{"$f":"IFERROR(VLOOKUP(ROWS(BC$3:BC259),$BA$3:$BB$292,2,0),\"\")","v":"ß-Total-40K"}]
[null,null,null,null,null,null,null,null,null,null,null,null,null,null,null,null,null,null,null,null,null,null,null,null,null,null,null,null,null,null,null,null,null,null,null,null,null,null,null,null,null,null,null,null,null,null,null,null,null,null,null,null,{"$f":"IF(IFERROR(SEARCH($BB$1,BB260,1),0)>0,MAX(BA$2:BA259)+1,0)","v":258},"Subst. Extraíveis por Clorofórmio",{"$f":"IFERROR(VLOOKUP(ROWS(BC$3:BC260),$BA$3:$BB$292,2,0),\"\")","v":"Subst. Extraíveis por Clorofórmio"}]
[null,null,null,null,null,null,null,null,null,null,null,null,null,null,null,null,null,null,null,null,null,null,null,null,null,null,null,null,null,null,null,null,null,null,null,null,null,null,null,null,null,null,null,null,null,null,null,null,null,null,null,null,{"$f":"IF(IFERROR(SEARCH($BB$1,BB261,1),0)>0,MAX(BA$2:BA260)+1,0)","v":259},"Substâncias Tensioactivas",{"$f":"IFERROR(VLOOKUP(ROWS(BC$3:BC261),$BA$3:$BB$292,2,0),\"\")","v":"Substâncias Tensioactivas"}]
[null,null,null,null,null,null,null,null,null,null,null,null,null,null,null,null,null,null,null,null,null,null,null,null,null,null,null,null,null,null,null,null,null,null,null,null,null,null,null,null,null,null,null,null,null,null,null,null,null,null,null,null,{"$f":"IF(IFERROR(SEARCH($BB$1,BB262,1),0)>0,MAX(BA$2:BA261)+1,0)","v":260},"Sulfatos",{"$f":"IFERROR(VLOOKUP(ROWS(BC$3:BC262),$BA$3:$BB$292,2,0),\"\")","v":"Sulfatos"}]
[null,null,null,null,null,null,null,null,null,null,null,null,null,null,null,null,null,null,null,null,null,null,null,null,null,null,null,null,null,null,null,null,null,null,null,null,null,null,null,null,null,null,null,null,null,null,null,null,null,null,null,null,{"$f":"IF(IFERROR(SEARCH($BB$1,BB263,1),0)>0,MAX(BA$2:BA262)+1,0)","v":261},"Sulfito",{"$f":"IFERROR(VLOOKUP(ROWS(BC$3:BC263),$BA$3:$BB$292,2,0),\"\")","v":"Sulfito"}]
[null,null,null,null,null,null,null,null,null,null,null,null,null,null,null,null,null,null,null,null,null,null,null,null,null,null,null,null,null,null,null,null,null,null,null,null,null,null,null,null,null,null,null,null,null,null,null,null,null,null,null,null,{"$f":"IF(IFERROR(SEARCH($BB$1,BB264,1),0)>0,MAX(BA$2:BA263)+1,0)","v":262},"Sulfureto",{"$f":"IFERROR(VLOOKUP(ROWS(BC$3:BC264),$BA$3:$BB$292,2,0),\"\")","v":"Sulfureto"}]
[null,null,null,null,null,null,null,null,null,null,null,null,null,null,null,null,null,null,null,null,null,null,null,null,null,null,null,null,null,null,null,null,null,null,null,null,null,null,null,null,null,null,null,null,null,null,null,null,null,null,null,null,{"$f":"IF(IFERROR(SEARCH($BB$1,BB265,1),0)>0,MAX(BA$2:BA264)+1,0)","v":263},"Tebuconazol",{"$f":"IFERROR(VLOOKUP(ROWS(BC$3:BC265),$BA$3:$BB$292,2,0),\"\")","v":"Tebuconazol"}]
[null,null,null,null,null,null,null,null,null,null,null,null,null,null,null,null,null,null,null,null,null,null,null,null,null,null,null,null,null,null,null,null,null,null,null,null,null,null,null,null,null,null,null,null,null,null,null,null,null,null,null,null,{"$f":"IF(IFERROR(SEARCH($BB$1,BB266,1),0)>0,MAX(BA$2:BA265)+1,0)","v":264},"Temperatura",{"$f":"IFERROR(VLOOKUP(ROWS(BC$3:BC266),$BA$3:$BB$292,2,0),\"\")","v":"Temperatura"}]
[null,null,null,null,null,null,null,null,null,null,null,null,null,null,null,null,null,null,null,null,null,null,null,null,null,null,null,null,null,null,null,null,null,null,null,null,null,null,null,null,null,null,null,null,null,null,null,null,null,null,null,null,{"$f":"IF(IFERROR(SEARCH($BB$1,BB267,1),0)>0,MAX(BA$2:BA266)+1,0)","v":265},"Temperatura [Amostra pontual]",{"$f":"IFERROR(VLOOKUP(ROWS(BC$3:BC267),$BA$3:$BB$292,2,0),\"\")","v":"Temperatura [Amostra pontual]"}]
[null,null,null,null,null,null,null,null,null,null,null,null,null,null,null,null,null,null,null,null,null,null,null,null,null,null,null,null,null,null,null,null,null,null,null,null,null,null,null,null,null,null,null,null,null,null,null,null,null,null,null,null,{"$f":"IF(IFERROR(SEARCH($BB$1,BB268,1),0)>0,MAX(BA$2:BA267)+1,0)","v":266},"Terbutilazina",{"$f":"IFERROR(VLOOKUP(ROWS(BC$3:BC268),$BA$3:$BB$292,2,0),\"\")","v":"Terbutilazina"}]
[null,null,null,null,null,null,null,null,null,null,null,null,null,null,null,null,null,null,null,null,null,null,null,null,null,null,null,null,null,null,null,null,null,null,null,null,null,null,null,null,null,null,null,null,null,null,null,null,null,null,null,null,{"$f":"IF(IFERROR(SEARCH($BB$1,BB269,1),0)>0,MAX(BA$2:BA268)+1,0)","v":267},"Tetracloreto de Carbono",{"$f":"IFERROR(VLOOKUP(ROWS(BC$3:BC269),$BA$3:$BB$292,2,0),\"\")","v":"Tetracloreto de Carbono"}]
[null,null,null,null,null,null,null,null,null,null,null,null,null,null,null,null,null,null,null,null,null,null,null,null,null,null,null,null,null,null,null,null,null,null,null,null,null,null,null,null,null,null,null,null,null,null,null,null,null,null,null,null,{"$f":"IF(IFERROR(SEARCH($BB$1,BB270,1),0)>0,MAX(BA$2:BA269)+1,0)","v":268},"Tetracloroeteno",{"$f":"IFERROR(VLOOKUP(ROWS(BC$3:BC270),$BA$3:$BB$292,2,0),\"\")","v":"Tetracloroeteno"}]
[null,null,null,null,null,null,null,null,null,null,null,null,null,null,null,null,null,null,null,null,null,null,null,null,null,null,null,null,null,null,null,null,null,null,null,null,null,null,null,null,null,null,null,null,null,null,null,null,null,null,null,null,{"$f":"IF(IFERROR(SEARCH($BB$1,BB271,1),0)>0,MAX(BA$2:BA270)+1,0)","v":269},"Tetracloroetileno",{"$f":"IFERROR(VLOOKUP(ROWS(BC$3:BC271),$BA$3:$BB$292,2,0),\"\")","v":"Tetracloroetileno"}]
[null,null,null,null,null,null,null,null,null,null,null,null,null,null,null,null,null,null,null,null,null,null,null,null,null,null,null,null,null,null,null,null,null,null,null,null,null,null,null,null,null,null,null,null,null,null,null,null,null,null,null,null,{"$f":"IF(IFERROR(SEARCH($BB$1,BB272,1),0)>0,MAX(BA$2:BA271)+1,0)","v":270},"Tirame",{"$f":"IFERROR(VLOOKUP(ROWS(BC$3:BC272),$BA$3:$BB$292,2,0),\"\")","v":"Tirame"}]
[null,null,null,null,null,null,null,null,null,null,null,null,null,null,null,null,null,null,null,null,null,null,null,null,null,null,null,null,null,null,null,null,null,null,null,null,null,null,null,null,null,null,null,null,null,null,null,null,null,null,null,null,{"$f":"IF(IFERROR(SEARCH($BB$1,BB273,1),0)>0,MAX(BA$2:BA272)+1,0)","v":271},"Titânio",{"$f":"IFERROR(VLOOKUP(ROWS(BC$3:BC273),$BA$3:$BB$292,2,0),\"\")","v":"Titânio"}]
[null,null,null,null,null,null,null,null,null,null,null,null,null,null,null,null,null,null,null,null,null,null,null,null,null,null,null,null,null,null,null,null,null,null,null,null,null,null,null,null,null,null,null,null,null,null,null,null,null,null,null,null,{"$f":"IF(IFERROR(SEARCH($BB$1,BB274,1),0)>0,MAX(BA$2:BA273)+1,0)","v":272},"TOC",{"$f":"IFERROR(VLOOKUP(ROWS(BC$3:BC274),$BA$3:$BB$292,2,0),\"\")","v":"TOC"}]
[null,null,null,null,null,null,null,null,null,null,null,null,null,null,null,null,null,null,null,null,null,null,null,null,null,null,null,null,null,null,null,null,null,null,null,null,null,null,null,null,null,null,null,null,null,null,null,null,null,null,null,null,{"$f":"IF(IFERROR(SEARCH($BB$1,BB275,1),0)>0,MAX(BA$2:BA274)+1,0)","v":273},"Tolueno",{"$f":"IFERROR(VLOOKUP(ROWS(BC$3:BC275),$BA$3:$BB$292,2,0),\"\")","v":"Tolueno"}]
[null,null,null,null,null,null,null,null,null,null,null,null,null,null,null,null,null,null,null,null,null,null,null,null,null,null,null,null,null,null,null,null,null,null,null,null,null,null,null,null,null,null,null,null,null,null,null,null,null,null,null,null,{"$f":"IF(IFERROR(SEARCH($BB$1,BB276,1),0)>0,MAX(BA$2:BA275)+1,0)","v":274},"Tório 228",{"$f":"IFERROR(VLOOKUP(ROWS(BC$3:BC276),$BA$3:$BB$292,2,0),\"\")","v":"Tório 228"}]
[null,null,null,null,null,null,null,null,null,null,null,null,null,null,null,null,null,null,null,null,null,null,null,null,null,null,null,null,null,null,null,null,null,null,null,null,null,null,null,null,null,null,null,null,null,null,null,null,null,null,null,null,{"$f":"IF(IFERROR(SEARCH($BB$1,BB277,1),0)>0,MAX(BA$2:BA276)+1,0)","v":275},"Tório 230",{"$f":"IFERROR(VLOOKUP(ROWS(BC$3:BC277),$BA$3:$BB$292,2,0),\"\")","v":"Tório 230"}]
[null,null,null,null,null,null,null,null,null,null,null,null,null,null,null,null,null,null,null,null,null,null,null,null,null,null,null,null,null,null,null,null,null,null,null,null,null,null,null,null,null,null,null,null,null,null,null,null,null,null,null,null,{"$f":"IF(IFERROR(SEARCH($BB$1,BB278,1),0)>0,MAX(BA$2:BA277)+1,0)","v":276},"Tório 232",{"$f":"IFERROR(VLOOKUP(ROWS(BC$3:BC278),$BA$3:$BB$292,2,0),\"\")","v":"Tório 232"}]
[null,null,null,null,null,null,null,null,null,null,null,null,null,null,null,null,null,null,null,null,null,null,null,null,null,null,null,null,null,null,null,null,null,null,null,null,null,null,null,null,null,null,null,null,null,null,null,null,null,null,null,null,{"$f":"IF(IFERROR(SEARCH($BB$1,BB279,1),0)>0,MAX(BA$2:BA278)+1,0)","v":277},"Triclopir",{"$f":"IFERROR(VLOOKUP(ROWS(BC$3:BC279),$BA$3:$BB$292,2,0),\"\")","v":"Triclopir"}]
[null,null,null,null,null,null,null,null,null,null,null,null,null,null,null,null,null,null,null,null,null,null,null,null,null,null,null,null,null,null,null,null,null,null,null,null,null,null,null,null,null,null,null,null,null,null,null,null,null,null,null,null,{"$f":"IF(IFERROR(SEARCH($BB$1,BB280,1),0)>0,MAX(BA$2:BA279)+1,0)","v":278},"Triclorobenzenos",{"$f":"IFERROR(VLOOKUP(ROWS(BC$3:BC280),$BA$3:$BB$292,2,0),\"\")","v":"Triclorobenzenos"}]
[null,null,null,null,null,null,null,null,null,null,null,null,null,null,null,null,null,null,null,null,null,null,null,null,null,null,null,null,null,null,null,null,null,null,null,null,null,null,null,null,null,null,null,null,null,null,null,null,null,null,null,null,{"$f":"IF(IFERROR(SEARCH($BB$1,BB281,1),0)>0,MAX(BA$2:BA280)+1,0)","v":279},"Tricloroeteno",{"$f":"IFERROR(VLOOKUP(ROWS(BC$3:BC281),$BA$3:$BB$292,2,0),\"\")","v":"Tricloroeteno"}]
[null,null,null,null,null,null,null,null,null,null,null,null,null,null,null,null,null,null,null,null,null,null,null,null,null,null,null,null,null,null,null,null,null,null,null,null,null,null,null,null,null,null,null,null,null,null,null,null,null,null,null,null,{"$f":"IF(IFERROR(SEARCH($BB$1,BB282,1),0)>0,MAX(BA$2:BA281)+1,0)","v":280},"Tricloroeteno e Tetracloroeteno",{"$f":"IFERROR(VLOOKUP(ROWS(BC$3:BC282),$BA$3:$BB$292,2,0),\"\")","v":"Tricloroeteno e Tetracloroeteno"}]
[null,null,null,null,null,null,null,null,null,null,null,null,null,null,null,null,null,null,null,null,null,null,null,null,null,null,null,null,null,null,null,null,null,null,null,null,null,null,null,null,null,null,null,null,null,null,null,null,null,null,null,null,{"$f":"IF(IFERROR(SEARCH($BB$1,BB283,1),0)>0,MAX(BA$2:BA282)+1,0)","v":281},"Tricloroetileno",{"$f":"IFERROR(VLOOKUP(ROWS(BC$3:BC283),$BA$3:$BB$292,2,0),\"\")","v":"Tricloroetileno"}]
[null,null,null,null,null,null,null,null,null,null,null,null,null,null,null,null,null,null,null,null,null,null,null,null,null,null,null,null,null,null,null,null,null,null,null,null,null,null,null,null,null,null,null,null,null,null,null,null,null,null,null,null,{"$f":"IF(IFERROR(SEARCH($BB$1,BB284,1),0)>0,MAX(BA$2:BA283)+1,0)","v":282},"Trihalometanos",{"$f":"IFERROR(VLOOKUP(ROWS(BC$3:BC284),$BA$3:$BB$292,2,0),\"\")","v":"Trihalometanos"}]
[null,null,null,null,null,null,null,null,null,null,null,null,null,null,null,null,null,null,null,null,null,null,null,null,null,null,null,null,null,null,null,null,null,null,null,null,null,null,null,null,null,null,null,null,null,null,null,null,null,null,null,null,{"$f":"IF(IFERROR(SEARCH($BB$1,BB285,1),0)>0,MAX(BA$2:BA284)+1,0)","v":283},"Trítio",{"$f":"IFERROR(VLOOKUP(ROWS(BC$3:BC285),$BA$3:$BB$292,2,0),\"\")","v":"Trítio"}]
[null,null,null,null,null,null,null,null,null,null,null,null,null,null,null,null,null,null,null,null,null,null,null,null,null,null,null,null,null,null,null,null,null,null,null,null,null,null,null,null,null,null,null,null,null,null,null,null,null,null,null,null,{"$f":"IF(IFERROR(SEARCH($BB$1,BB286,1),0)>0,MAX(BA$2:BA285)+1,0)","v":284},"Turvação",{"$f":"IFERROR(VLOOKUP(ROWS(BC$3:BC286),$BA$3:$BB$292,2,0),\"\")","v":"Turvação"}]
[null,null,null,null,null,null,null,null,null,null,null,null,null,null,null,null,null,null,null,null,null,null,null,null,null,null,null,null,null,null,null,null,null,null,null,null,null,null,null,null,null,null,null,null,null,null,null,null,null,null,null,null,{"$f":"IF(IFERROR(SEARCH($BB$1,BB287,1),0)>0,MAX(BA$2:BA286)+1,0)","v":285},"Urânio 234",{"$f":"IFERROR(VLOOKUP(ROWS(BC$3:BC287),$BA$3:$BB$292,2,0),\"\")","v":"Urânio 234"}]
[null,null,null,null,null,null,null,null,null,null,null,null,null,null,null,null,null,null,null,null,null,null,null,null,null,null,null,null,null,null,null,null,null,null,null,null,null,null,null,null,null,null,null,null,null,null,null,null,null,null,null,null,{"$f":"IF(IFERROR(SEARCH($BB$1,BB288,1),0)>0,MAX(BA$2:BA287)+1,0)","v":286},"Urânio 235",{"$f":"IFERROR(VLOOKUP(ROWS(BC$3:BC288),$BA$3:$BB$292,2,0),\"\")","v":"Urânio 235"}]
[null,null,null,null,null,null,null,null,null,null,null,null,null,null,null,null,null,null,null,null,null,null,null,null,null,null,null,null,null,null,null,null,null,null,null,null,null,null,null,null,null,null,null,null,null,null,null,null,null,null,null,null,{"$f":"IF(IFERROR(SEARCH($BB$1,BB289,1),0)>0,MAX(BA$2:BA288)+1,0)","v":287},"Urânio 238",{"$f":"IFERROR(VLOOKUP(ROWS(BC$3:BC289),$BA$3:$BB$292,2,0),\"\")","v":"Urânio 238"}]
[null,null,null,null,null,null,null,null,null,null,null,null,null,null,null,null,null,null,null,null,null,null,null,null,null,null,null,null,null,null,null,null,null,null,null,null,null,null,null,null,null,null,null,null,null,null,null,null,null,null,null,null,{"$f":"IF(IFERROR(SEARCH($BB$1,BB290,1),0)>0,MAX(BA$2:BA289)+1,0)","v":288},"Vanádio",{"$f":"IFERROR(VLOOKUP(ROWS(BC$3:BC290),$BA$3:$BB$292,2,0),\"\")","v":"Vanádio"}]
[null,null,null,null,null,null,null,null,null,null,null,null,null,null,null,null,null,null,null,null,null,null,null,null,null,null,null,null,null,null,null,null,null,null,null,null,null,null,null,null,null,null,null,null,null,null,null,null,null,null,null,null,{"$f":"IF(IFERROR(SEARCH($BB$1,BB291,1),0)>0,MAX(BA$2:BA290)+1,0)","v":289},"Zinco",{"$f":"IFERROR(VLOOKUP(ROWS(BC$3:BC291),$BA$3:$BB$292,2,0),\"\")","v":"Zinco"}]
[null,null,null,null,null,null,null,null,null,null,null,null,null,null,null,null,null,null,null,null,null,null,null,null,null,null,null,null,null,null,null,null,null,null,null,null,null,null,null,null,null,null,null,null,null,null,null,null,null,null,null,null,{"$f":"IF(IFERROR(SEARCH($BB$1,BB292,1),0)>0,MAX(BA$2:BA291)+1,0)","v":290},"Aplicação de Amostrador Automático",{"$f":"IFERROR(VLOOKUP(ROWS(BC$3:BC292),$BA$3:$BB$292,2,0),\"\")","v":"Aplicação de Amostrador Automático"}]